Workbook

Sheet Tabelle1 (hidden)
B6: Kategorie des Zugangsbereiches | D6: Aufstellungsort-Klassifikationen
D7: I | E7: II | F7: III | G7: IV
B8: a | C8: Menschlicher Komfort | D8: Nach C.2 und nicht mehr als m2^a x 1,5 oder nach C.3 und nicht mehr als m3^a x 1,5 | F8: Keine Begrenzung der Füllmenge^c | G8: Füllmenge des Kältemittels nicht mehr als m3^b x 1,5
C9: Andere Anwendung | D9: 20% x LFL x Raumvolumen und nicht mehr als m2^a x 1,5 oder nach C.3 und nicht mehr als m3^bx1,5
B10: b | C10: Menschlicher Komfort | D10: Nach C.2 und nicht mehr als m2^a x 1,5 oder nach C.3 und nicht mehr als m3^a x 1,5
C11: Andere Anwendung | D11: 20% x LFL x Raumvolumen und nicht mehr als m2^a x 1,5 oder nach C.3 und nicht mehr als m3^bx1,5 | E11: 20% x LFL x Raumvolumen und nicht mehr als 25 kg^c ider nach C.3 und nicht mehr als m3^b x 1,5
B12: c | C12: Menschlicher Komfort | D12: Nach C.2 und nicht mehr als m2^a x 1,5 oder nach C.3 und nicht mehr als m3^a x 1,5
C13: Andere Anwendung | D13: 20% x LFL x Raumvolumen und nicht mehr als m2^a x 1,5 oder nach C.3 und nicht mehr als m3^bx1,5 | E13: 20% x LFL x Raumvolumen und nicht mehr als 25 kg^c ider nach C.3 und nicht mehr als m3^b x 1,5
C14: < 1 Person pro 10m^2 | D14: 20% x LFL x Raumvolumen und nicht mehr als 50kg^a oder nach C.3 und nicht mehr als m3^b x 1,5 | E14: Keine Begrenzung der Füllmenge^c
B15: a | C15: m2= 26m^3 x LFL
B16: b | C16: m3= 130m^3 x LFL
B17: c | C17: Für die Aufstellung im freien gilt EN 378-3:2016, 4.2 und für Maschinenräume gilt EN 378-3:2016, 4.3
C18: m1 = 4m^3 x LFL

Sheet Disclaimer
B2: DISCLAIMER This software/calculator endeavors to calculate the refrigerant charge limits of refrigerating systems and/or heat pump systems etc. in relation to their location, selected application and accessibility class according to annex C of EN378-1. The tool is meant to facilitate the identification of risks associated with the use of A2L refrigerants in refrigerating systems and/or heat pump systems etc. and suggests mitigation measures according to EN378-1 to manage the risk of refrigerating systems and/or heat pump systems etc. using A2L refrigerants in occupied spaces, as these must be tailored as the circumstances require, case by case. It remains your responsibility to validate the application. Copeland assumes no responsibility and or any subsequent liability for any claims or damages howsoever arising, in particular if appropriate risk management were not implemented adequately on your side. Copeland shall not be responsible for how any risk assessment is performed and utilized and shall not be responsible for its content or findings. You should note that nothing within any such assessment overrides any requirements needed to comply with the statutory obligations, as well as all associated regulations and common codes of practice.

Sheet Information how to use
B2: 1. | C2: Location classification of refrigerating systems
C4: Class IV | D4: If all refrigerant-containing parts are located in a ventilated enclosure then the requirements for a class IV location shall apply. The ventilated enclosure shall fulfil the requirements of EN 378-2 and EN 378-3.
C6: Ventilated enclosure
C9: Class III | D9: If all refrigerant-containing parts are located in a machinery room or open air then the requirements for a class III location shall apply. The machinery room shall fulfil the requirements of EN 378-3.
C11: Machinery room or open air
C15: Class II | D15: If all compressors and pressure vessels are either located in a machinery room or in the open air then the requirements for a class II location shall apply unless the system complies with the requirements of class III. Coils and pipework including valves may be located in an occupied space.
C17: Compressors in machinery room or open air
C22: Class I | D22: If the refrigerating system or refrigerant-containing parts are located in the occupied space, then the system is considered to be of class I unless the system complies with the requirements of class II.
C24: Mechanical equipment located within the occupied space
B29: 2. | C29: Access categories
C31: Categorie | D31: General properties | E31: Examples
C32: General access | D32: Rooms, parts of buildings, building where | E32: Hospitals, courts or prisons, theatres, supermarkets, schools, lecture halls, public transport terminals, hotels, dwellings, restaurants
C33: a | D33: - sleeping facilities are provided
D34: - people are restricted in their movement
D35: - an uncontrolled number of people are present
D36: - any person has access without being personally acquainted with the necessary safety precautions
C38: Supervised access | D38: Rooms, parts of buildings, buildings where only a limited number of people may be assembled, some being necessarily acquainted with the general safety precautions of the establishment | E38: Business or professional offices, laboratories, places for general manufacturing and where people work
C39: b
C43: Authorized access | D43: Rooms, parts of buildings, buildings where only authorized people have access, who are acquainted with general and special safety precautions of the establishment and where manufacturing, processing or storage of material or products take place | E43: Manufacturing facilities, e.g. for chemicals, food, beverage, ice, ice-cream, refineries, cold stores, dairies, slaughterhouses, non-public areas in supermarkets
C45: c
B50: 3. | C50: Application
B51: 3.
C52: Human Comfort | D52: AC-systems, HP-systems
C53: Other Application | D53: MT-system, LT-system, Chiller
C54: < 1 Person in 10m² | D54: Valid for some location classification and access category c
B56: 4. | C56: Refrigerant
B59: 5.
C60: Room dimensions
C62: It should be noted that for the "Human Comfort" applications the floor space m² is decisive, for the other applications: "Other Application" and "< 1 person in 10m² the room volume m³ is decisive for determining the refrigerant filling quantities.
B67: 6. | C67: Required refrigerant amount
C69: Minimum refrigerant charge can be entered in the column "Required Refrigerant Charge". The refrigerant charge calculator determines the maximum filling quantity for systems which are sealed at the factory (Fixed factory sealed systems*) and also the filling quantity for systems which are not in a factory sealed housing. It is also possible to calculate the minimum space required for the specified minimum amount of refrigerant. This function is available with "Human Comfort" application only. For "other applications", there is an extra refrigerant quantity bonus for "sealed systems**".
C78: *Factory sealed systems: Firmly installed, factory closed, stand-alone air conditioners or heat pumps are specified, which do not require additional safety measures and are also independent of the room size.
C80: **Sealed systems: Refrigerating system in which all refrigerant containing parts are made tight by welding, brazing or a similar permanent connection which may include capped valves and capped service ports that allow proper repair or disposal and which have a tested leakage rate of less than 3 grams per year under a pressure of at least a quarter of the maximum allowable pressure.
C82: Sealed systems in accordance with EN 378–2 are equivalent to hermetically sealed systems with EN 16084 .

Sheet A2L Calculator (above ground)
B1: Copeland Refrigerant Charge Calculator
B2: Enter the location, access categories and refrigerant using the drop down list. | H2: Location Classification
B3: In addition, entries for the room dimensions and estimated refrigerant charge are also required.
B4: (See EN378-1 for reference and further details).
C7: Location Classification: | D7: Class I | AA7: 1 | AB7: =IF(D7="Class I","1",IF(D7="Class II","2",IF(D7="Class III","3","4"))) -> 1 | AC7: =AB7&AB24 -> 1HC | AG7: =IF(D7=a,a,IF(D7=b,b,IF(D7=e,e,d))) -> Class I
AA8: 2
C9: =IF(AG7=a,Bezüge!C4,IF('A2L Calculator (above ground)'!AG7=b,Bezüge!C5,IF('A2L Calculator (above ground)'!AG7=e,Bezüge!C6,Bezüge!C7))) -> Mechanical equipment located within the occupied space If the refrigerating system or refrigerant-containing parts are located in the occupied space, then the system is considered to be of class I unless the system complies with the requirements of class II. | AA9: 3
C14: Access Category: | D14: a | AB14: =IF(D14="a","a",IF(D14="b","b","c")) -> a | AC14: =AB14&AB7 -> a1 | AG14: =IF(D14=f,f,IF(D14=g,g,h)) -> a
C16: =IF(AG14=f,Bezüge!C9,IF(AG14=g,Bezüge!C10,Bezüge!C11)) -> Rooms, parts of buildings, building where — sleeping facilities are provided, people are restricted in their movement, an uncontrolled number of people are present, any person has access without being personally acquainted with the necessary safety precautions
B21: Examples: | C21: =IF(AG14=f,Bezüge!C13,IF(AG14=g,Bezüge!C14,Bezüge!C15)) -> Hospitals, courts or prisons, theatres, supermarkets, schools, lecture halls, public transport termini, hotels, dwellings, restaurants
C24: Application: | D24: Human Comfort | AB24: =IF(D24="Human Comfort","HC",IF(D24="other application","OA","1Pers")) -> HC | AC24: =IF(OR(AB24="OA",AB24="1Pers"),"1","") ->  | AD24: =AC24&AB14&AB7 -> a1 | AG24: =IF(D24=i,i,IF(D24=j,j,k)) -> Human Comfort
B25: Examples: | C25: =IF(AB24="HC", "Heatpump / Air Conditioning",IF(AB24="oa","Medium Temp. System / Low Temp. System / Chiller System etc.",IF(AB24="1Pers","WARNING: Only Valid for Location Class I or II and Access Category c",""))) -> Heatpump / Air Conditioning
C28: Double-Click for more info:
C31: Refrigerant: | D31: R454C | E31: =IF(D31=l,Bezüge!D24,IF(D31=l,Bezüge!D32,IF(D31=m,Bezüge!D25,IF(D31=n,Bezüge!D26,IF(D31=o,Bezüge!D27,IF(D31=p,Bezüge!D28,IF(D31=q,Bezüge!D29,IF(D31=u,Bezüge!D30,IF(D31=w,Bezüge!D31,Bezüge!D32))))))))&" LFL:") -> (GWP = 148) LFL: | F31: =IF(D31=l,Bezüge!C24,IF(D31=m,Bezüge!C25,IF(D31=n,Bezüge!C26,IF(D31=o,Bezüge!C27,IF(D31=p,Bezüge!C28,IF(D31=q,Bezüge!C29,IF(D31=u,Bezüge!C30,IF(D31=w,Bezüge!C31,Bezüge!C32)))))))) -> 0.293 | H31: Access Category | AB31: =IF(D31="R454C","1",IF(D31="R454A","2",IF(D31="R454B","3",IF(D31="R452B","4",IF(D31="R32","5",IF(D31="R455A","6",IF(D31="R152a","7",IF(D31="R1234yf","8",IF(D31="R1234ze","9",""))))))))) -> 1
C32: =E31 -> (GWP = 148) LFL: | D32: =LFL -> 0.293
C33: Number of rooms: | D33: 1
C35: Room Dimensions / m:
C36: Room 1:
C37: Length: | D37: 10 | E37: Height: | F37: 2.5
C38: Width: | D38: 10
C40: =IF(D33>=2,"Room 2:","") -> 
C41: Length: | D41: 0 | E41: Height: | F41: 0
C42: Width: | D42: 0
C44: =IF(D33=3,"Room 3:","") -> 
C45: Length: | D45: 0 | E45: Height: | F45: 0
C46: Width: | D46: 0
C48: Height Factor: | D48: Ceiling Mounted | E48: =IF(D48=Bezüge!B37,"0.6",IF(D48=Bezüge!B38,"1",IF(D48=Bezüge!B39,"1.8","2.2"))) -> 2.2 | F48: Only for Human Comfort use
C49: =IF(AB24="HC","Actual Room Area:","") -> Actual Room Area: | D49: =IF(AB24="HC",Berechnungen!B37,"") -> 100
C50: =IF(OR(AB24="OA",AB24="1Pers"),"Actual Room Volume","") ->  | D50: =IF(OR(AB24="OA",AB24="1Pers"),Berechnungen!B41,"") -> 
C51: Refrigerant Charge Limits / kg:
C52: Required Refrigerant Charge / kg (optional): | D52: 2
H53: =IF(AND(AC7="1HC",D52>Berechnungen!B21,D52<=Berechnungen!B22),"Minimum floor area for a Non-Fixed Factory Sealed Single Packaged AC or Heat Pump Unit with a charge of "&D52&"kg","") -> Minimum floor area for a Non-Fixed Factory Sealed Single Packaged AC or Heat Pump Unit with a charge of 2kg | J53: =IF(AND(AC7="1HC",D52>Berechnungen!B21,D52<=Berechnungen!B22),"Maximum Charge for a Non-Fixed Factory Sealed Single Packaged AC or Heat Pump Unit in a "&A_2&"m² room","") -> Maximum Charge for a Non-Fixed Factory Sealed Single Packaged AC or Heat Pump Unit in a 100m² room
D55: =IF(Berechnungen!D27="1","Non-Sealed System","") ->  | F55: =IF(AND(Berechnungen!F5>'A2L Calculator (above ground)'!D56,Berechnungen!D27="1"),"Sealed System*","") -> 
D56: =IF(AB24="hc",Berechnungen!B28,Berechnungen!B27) -> 11.427 | F56: =IF(AND(Berechnungen!F5>'A2L Calculator (above ground)'!D56,Berechnungen!D27="1"),Berechnungen!F5,"") ->  | H56: =IF(AND(AC7="1HC",D52>Berechnungen!B21,D52<=Berechnungen!B22),Berechnungen!B25,"") -> 12.41079739 | J56: =IF(AND(AC7="1HC",D52>Berechnungen!B21,D52<=Berechnungen!B22),Berechnungen!C24,"") -> 2.344
C57: =IF(AB24="hc","EN 378 Appendix C2:","EN 378 Appendix C1:") -> EN 378 Appendix C2:
D59: =IF(AND(OR(Berechnungen!G7="2c1Pers",AB7="3"), NOT(AB24="HC")), Berechnungen!C17, " ") -> 
C60: =IF(AND(AB24="OA")*AB7=2,Bezüge!B45,"") -> 
C62: Additional filling quantities in conjunction with additional measures according to DIN EN 378
D63: Non-Sealed System | F63: =IF(AND(Berechnungen!F5>'A2L Calculator (above ground)'!D56,Berechnungen!D27="1"),"Sealed System*","") -> 
D64: =IF('QLAV & QLMV'!A65="OAa1",'QLAV & QLMV'!C63,IF('QLAV & QLMV'!A65="OAa2",'QLAV & QLMV'!F63,IF('QLAV & QLMV'!A65="OAb1",'QLAV & QLMV'!I63,IF('QLAV & QLMV'!A65="OAb2",'QLAV & QLMV'!L63,IF('QLAV & QLMV'!A65="OAc1",'QLAV & QLMV'!O63,IF('QLAV & QLMV'!A65="OAc2",'QLAV & QLMV'!R63,IF('QLAV & QLMV'!A65="1Persc1",'QLAV & QLMV'!U63,IF('A2L Calculator (above ground)'!AD24="1a3",'QLAV & QLMV'!X63,IF('A2L Calculator (above ground)'!AD24="1b3",'QLAV & QLMV'!Y63,IF('A2L Calculator (above ground)'!AD24="1c3",'QLAV & QLMV'!Z63,IF('A2L Calculator (above ground)'!AD24="1a4",'QLAV & QLMV'!AA63,IF('A2L Calculator (above ground)'!AD24="1b4",'QLAV & QLMV'!AB63,IF('A2L Calculator (above ground)'!AD24="1c4",'QLAV & QLMV'!AC63,IF('QLAV & QLMV'!A65="HCa1",'QLAV & QLMV'!C91,IF('QLAV & QLMV'!A65="HCa2",'QLAV & QLMV'!F91,IF('QLAV & QLMV'!A65="HCb1",'QLAV & QLMV'!I91,IF('QLAV & QLMV'!A65="HCb2",'QLAV & QLMV'!L91,IF('QLAV & QLMV'!A65="HCc1",'QLAV & QLMV'!O91,IF('QLAV & QLMV'!A65="HCc2",'QLAV & QLMV'!R91,IF('QLAV & QLMV'!A65="HCa3",'QLAV & QLMV'!T91,IF('QLAV & QLMV'!A65="HCb3",'QLAV & QLMV'!U91,IF('QLAV & QLMV'!A65="HCc3",'QLAV & QLMV'!V91,IF('QLAV & QLMV'!A65="HCa4",'QLAV & QLMV'!W91,IF('QLAV & QLMV'!A65="HCb4",'QLAV & QLMV'!X91,IF('QLAV & QLMV'!A65="HCc4",'QLAV & QLMV'!Y91,"N/A"))))))))))))))))))))))))) -> 11.427 | F64: =IF('QLAV & QLMV'!A65="OAa1",'QLAV & QLMV'!C62,IF('QLAV & QLMV'!A65="OAa2",'QLAV & QLMV'!F62,IF('QLAV & QLMV'!A65="OAb1",'QLAV & QLMV'!I62,IF('QLAV & QLMV'!A65="OAb2",'QLAV & QLMV'!L62,IF('QLAV & QLMV'!A65="OAc1",'QLAV & QLMV'!O62,IF('QLAV & QLMV'!A65="OAc2",'QLAV & QLMV'!R62,IF('QLAV & QLMV'!A65="1Persc1",'QLAV & QLMV'!U62,IF('A2L Calculator (above ground)'!AD24="1a3",'QLAV & QLMV'!X62,IF('A2L Calculator (above ground)'!AD24="1b3",'QLAV & QLMV'!Y62,IF('A2L Calculator (above ground)'!AD24="1c3",'QLAV & QLMV'!Z62,IF('A2L Calculator (above ground)'!AD24="1a4",'QLAV & QLMV'!AA62,IF('A2L Calculator (above ground)'!AD24="1b4",'QLAV & QLMV'!AB62,IF('A2L Calculator (above ground)'!AD24="1c4",'QLAV & QLMV'!AC62,""))))))))))))) ->  | H64: QLMV: Charge density of refrigerant that would result in a concentration equal to the RCL in a room of non-air tight construction with a moderately severe refrigerant leak. See C.3 for the use of Quantity Limit with Minimum Ventilation (QLMV) to manage risk for systems in occupied spaces not below ground level where the level of ventilation is not sufficient to disperse the leaked refrigerant within 15 min. The calculation is based on an opening of 0,0032 m2 and a leak rate of 2,78 g/s. ATTENTION: The QLMV value is not valid for cold rooms application!!!
C65: EN 378 Appendix C3 (QLMV):
D67: Non-Sealed System | F67: =IF(AND(Berechnungen!F5>'A2L Calculator (above ground)'!D56,Berechnungen!D27="1"),"Sealed System*","") -> 
D68: =IF('QLAV & QLMV'!A65="OAa1",'QLAV & QLMV'!D63,IF('QLAV & QLMV'!A65="OAa2",'QLAV & QLMV'!G63,IF('QLAV & QLMV'!A65="OAb1",'QLAV & QLMV'!J63,IF('QLAV & QLMV'!A65="OAb2",'QLAV & QLMV'!M63,IF('QLAV & QLMV'!A65="OAc1",'QLAV & QLMV'!P63,IF('QLAV & QLMV'!A65="OAc2",'QLAV & QLMV'!S63,IF('QLAV & QLMV'!A65="1Persc1",'QLAV & QLMV'!V63,IF('A2L Calculator (above ground)'!AD24="1a3",'QLAV & QLMV'!Y63,IF('A2L Calculator (above ground)'!AD24="1b3",'QLAV & QLMV'!Z63,IF('A2L Calculator (above ground)'!AD24="1c3",'QLAV & QLMV'!AA63,IF('A2L Calculator (above ground)'!AD24="1a4",'QLAV & QLMV'!AB63,IF('A2L Calculator (above ground)'!AD24="1b4",'QLAV & QLMV'!AC63,IF('A2L Calculator (above ground)'!AD24="1c4",'QLAV & QLMV'!AC63,IF('QLAV & QLMV'!A65="HCa1",'QLAV & QLMV'!D91,IF('QLAV & QLMV'!A65="HCa2",'QLAV & QLMV'!G91,IF('QLAV & QLMV'!A65="HCb1",'QLAV & QLMV'!J91,IF('QLAV & QLMV'!A65="HCb2",'QLAV & QLMV'!M91,IF('QLAV & QLMV'!A65="HCc1",'QLAV & QLMV'!P91,IF('QLAV & QLMV'!A65="HCc2",'QLAV & QLMV'!S91,IF('QLAV & QLMV'!A65="HCa3",'QLAV & QLMV'!U91,IF('QLAV & QLMV'!A65="HCb3",'QLAV & QLMV'!V91,IF('QLAV & QLMV'!A65="HCc3",'QLAV & QLMV'!W91,IF('QLAV & QLMV'!A65="HCa4",'QLAV & QLMV'!X91,IF('QLAV & QLMV'!A65="HCb4",'QLAV & QLMV'!Y91,IF('QLAV & QLMV'!A65="HCc4",'QLAV & QLMV'!Y91,"N/A"))))))))))))))))))))))))) -> 11.427 | F68: =IF('QLAV & QLMV'!A65="OAa1",'QLAV & QLMV'!D62,IF('QLAV & QLMV'!A65="OAa2",'QLAV & QLMV'!G62,IF('QLAV & QLMV'!A65="OAb1",'QLAV & QLMV'!J62,IF('QLAV & QLMV'!A65="OAb2",'QLAV & QLMV'!M62,IF('QLAV & QLMV'!A65="OAc1",'QLAV & QLMV'!P62,IF('QLAV & QLMV'!A65="OAc2",'QLAV & QLMV'!S62,IF('QLAV & QLMV'!A65="1Persc1",'QLAV & QLMV'!V62,IF('A2L Calculator (above ground)'!AC14="a3",'QLAV & QLMV'!Y62,IF('A2L Calculator (above ground)'!AC14="b3",'QLAV & QLMV'!Z62,IF('A2L Calculator (above ground)'!AC14="c3",'QLAV & QLMV'!AA62,IF('A2L Calculator (above ground)'!AC14="a4",'QLAV & QLMV'!AB62,IF('A2L Calculator (above ground)'!AC14="b4",'QLAV & QLMV'!AC62,IF('A2L Calculator (above ground)'!AC14="c4",'QLAV & QLMV'!AD62,""))))))))))))) ->  | H68: QLAV: Charge density of refrigerant that when exceeded creates an instantaneous dangerous situation, if the total charge leaked within the occupied space. See C.3 for the use of Quantity Limit with Additional Ventilation (QLAV) to manage risk for systems in occupied spaces where the level of ventilation is sufficient to disperse the leaked refrigerant within 15 min.
C69: EN 378 Appendix C3 (QLAV):
C71: Attention!
C72: These alternative provisions can only be used for an occupied space which fulfils all of following conditions:
C73: - systems where the refrigerant is classified as A1 or A2L according to Annex E;
C74: - systems where the refrigerant charge does not exceed 150 kg and does not exceed 1,5 × m3 for A2L refrigerants;
C75: - system location is class II in accordance with 5.3;
C76: - systems where the heat exchanger in the indoor unit and the control of the system are designed to prevent damage due to ice formation;
C77: - systems where the refrigerant-containing parts of the indoor unit are protected against fan breakage or the fan is designed to prevent breakage;
C78: - systems where only permanent joints are used in the occupied space in question except for site-made joints directly connecting the indoor unit to the piping;
C79: - systems where the refrigerant-containing pipes in the occupied space in question are installed in such way that it is protected against accidental damage in accordance with EN 378-2:2016, 6.2.3.3.4 and EN 378-3:2016, 6.2;
C80: - alternative provisions to ensure safety are provided in accordance with C.3.2.2 and C.3.2.3;
C81: - doors of the occupied space are not tight-fitting;
C82: - effect of flow down is mitigated in accordance with C.3.2.4.

Sheet Berechnungen (hidden)
C3: nach c.2 | F3: m1 | G3: m2 | H3: m3 | J3: Potenzen
B4: m max | C4: 2,5 x LFL^5/4 x h0 x a^1/2 | F4: 4xLFL | G4: 26xLFL | H4: 130xLFL | I4: LFL^5/4 | J4: =LFL^1.25 -> 0.2155681157
B5: A min | C5: m^2/(2,5xLFL^5/4xh0)^2 | F5: =4*LFL*1.5 -> 1.758 | G5: =26*LFL -> 7.618 | H5: =130*LFL -> 38.09 | I5: A^1/2 | J5: =A_2^0.5 -> 10
B7: C.2 | C7: m2^a*1,5 | D7: C.3 | E7: m3^a*1,5 | G7: ='A2L Calculator (above ground)'!AB7&'A2L Calculator (above ground)'!AB14&'A2L Calculator (above ground)'!AB24 -> 1aHC
A8: A / MenKom / I & II | B8: =2.5*J4*HF*J5 -> 11.85624636 | C8: =26*LFL*1.5 -> 11.427 | D8: ='A2L Calculator (above ground)'!D52/'A2L Calculator (above ground)'!D50 ->  | E8: =130*LFL*1.5 -> 57.135 | F8: =IF(AND(G7="1aHC",A_1>A__2),A__2,A_1) -> 11.427 | G8: =IF(AND(G7="2aHC",A_1>A__2),A__2,A_1) -> 11.85624636 | H8: =IF(AND($G$7="1aHC",$F$8<$F$5),$F$5,$F$8) -> 11.427 | I8: =IF(AND($G$7="2aHC",$G$8<$F$5),$F$5,$G$8) -> 11.85624636
A9: A / OthApp / I & II | B9: =0.2*LFL*'A2L Calculator (above ground)'!D50 ->  | C9: =26*LFL*1.5 -> 11.427 | D9: ='A2L Calculator (above ground)'!D52/'A2L Calculator (above ground)'!D50 ->  | E9: 57.135 | F9: =IF(AND(G7="1aOA",B_1>B_2),B_2,B_1) ->  | G9: =IF(AND(G7="2aOA",B_1>B_2),B_2,B_1) -> 
A10: B / MenKom / I & II | B10: =2.5*J4*HF*J5 -> 11.85624636 | C10: =26*LFL*1.5 -> 11.427 | D10: ='A2L Calculator (above ground)'!D52/'A2L Calculator (above ground)'!D50 ->  | E10: 57.135 | F10: =IF(AND(G7="1bHC",C_1>C_2),C_2,C_1) -> 11.85624636 | G10: =IF(AND(G7="2bHC",C_1>C_2),C_2,C_1) -> 11.85624636 | H10: =IF(AND($G$7="1bHC",$F$10<$F$5),$F$5,$F$10) -> 11.85624636 | I10: =IF(AND($G$7="2bHC",$G$10<$F$5),$F$5,$G$10) -> 11.85624636
A11: B / OthApp / I | B11: =0.2*LFL*'A2L Calculator (above ground)'!D50 ->  | C11: =26*LFL*1.5 -> 11.427 | D11: ='A2L Calculator (above ground)'!D52/'A2L Calculator (above ground)'!D50 ->  | E11: 57.135 | F11: =IF(AND(G7="1bOA",D_1>D_2),D_2,D_1) -> 
A12: B / OthApp / II | B12: =0.2*LFL*'A2L Calculator (above ground)'!D50 ->  | C12: 25 | D12: ='A2L Calculator (above ground)'!D52/'A2L Calculator (above ground)'!D50 ->  | E12: 57.135 | F12: =IF(AND(G7="2bOA",E_1>E_2),E_2,E_1) -> 
A13: C / MenKom / I & II | B13: =2.5*J4*HF*J5 -> 11.85624636 | C13: =26*LFL*1.5 -> 11.427 | D13: ='A2L Calculator (above ground)'!D52/'A2L Calculator (above ground)'!D50 ->  | E13: 57.135 | F13: =IF(AND(G7="1cHC",F_1>F_2),F_2,F_1) -> 11.85624636 | G13: =IF(AND(G7="2cHC",F_1>F_2),F_2,F_1) -> 11.85624636 | H13: =IF(AND($G$7="1cHC",$F$13<$F$5),$F$5,$F$13) -> 11.85624636 | I13: =IF(AND($G$7="2cHC",$G$13<$F$5),$F$5,$G$13) -> 11.85624636
A14: C / OthApp / I | B14: =0.2*LFL*'A2L Calculator (above ground)'!D50 ->  | C14: =26*LFL*1.5 -> 11.427 | D14: ='A2L Calculator (above ground)'!D52/'A2L Calculator (above ground)'!D50 ->  | E14: 57.135 | F14: =IF(AND(G7="1cOA",G_1>G_2),G_2,G_1) -> 
A15: C / OthApp / II | B15: =0.2*LFL*'A2L Calculator (above ground)'!D50 ->  | C15: 25 | D15: ='A2L Calculator (above ground)'!D52/'A2L Calculator (above ground)'!D50 ->  | E15: 57.135 | F15: =IF(AND(G7="2cOA",H_1>H_2),H_2,H_1) -> 
A16: C / <1 Pers / I | B16: =0.2*LFL*'A2L Calculator (above ground)'!D50 ->  | C16: 50 | D16: ='A2L Calculator (above ground)'!D52/'A2L Calculator (above ground)'!D50 ->  | E16: 57.135 | F16: =IF(AND(G7="1c1Pers",I_1>I_2),I_2,I_1) -> 
A17: C / <1 Pers / II | B17: No Charge Restriction | C17: For open air, FprEN 378–3:2016, 4.2 applies and, for machinery rooms, FprEN 378–3:2016, 4.3 applies.
A18: III | B18: No Charge Restriction | C18: For open air, FprEN 378–3:2016, 4.2 applies and, for machinery rooms, FprEN 378–3:2016, 4.3 applies.
A19: IV | B19: =130*LFL*1.5 -> 57.135
A21: 4xLFL | B21: =4*LFL -> 1.172
A22: 8xLFL | B22: =8*LFL -> 2.344
A24: m Max | B24: =0.25*A_2*LFL*2.2 -> 16.115 | C24: =IF(B24<B21,B21,MIN(B24,B22)) -> 2.344
A25: A Min | B25: ='A2L Calculator (above ground)'!D52/(0.25*LFL*2.2) -> 12.41079739
A27: Appendix C1: | B27: =IF(G7="1aOA",F9,IF(G7="2aOA",G9,IF(G7="1bOA",F11,IF(G7="2bOA",F12,IF(G7="1cOA",F14,IF(G7="2cOA",F15,IF(G7="1c1Pers",F16,IF(G7="2c1Pers",B17,IF('A2L Calculator (above ground)'!AB7="3",Berechnungen!B18,IF('A2L Calculator (above ground)'!AB7="4",L_1,"N/A")))))))))) -> N/A | D27: =IF(G7="1aOA","1",IF(G7="2aOA","1",IF(G7="1bOA","1",IF(G7="2bOA","1",IF(G7="1cOA","1",IF(G7="2cOA","1",IF(G7="1c1Pers","1","XXXXX"))))))) -> XXXXX
A28: Appendix C2: | B28: =IF(G7="1aHC",H8,IF(G7="2aHC",G8,IF(G7="1bHC",H10,IF(G7="2bHC",G10,IF(G7="1cHC",H13,IF(G7="2cHC",G13,IF('A2L Calculator (above ground)'!AB7="3",Berechnungen!B18,IF('A2L Calculator (above ground)'!AB7="4",L_1,"N/A")))))))) -> 11.427 | D28: =IF(G7="1aHC","1",IF(G7="1bHC","1",IF(G7="1cHC","1","XXX"))) -> 1
A33: Fläche/Volumen | B33: A2L-Rechner | C33: Cold Room
A34: Room 1 | B34: ='A2L Calculator (above ground)'!D37*'A2L Calculator (above ground)'!D38 -> 100 | C34: ='Template Cold Room (ab. ground)'!E26*'Template Cold Room (ab. ground)'!E27 -> 250 | E34: =0.2*LFLL*'Template Cold Room (ab. ground)'!D37 -> 431 | F34: 25
A35: Room 2 | B35: ='A2L Calculator (above ground)'!D41*'A2L Calculator (above ground)'!D42 -> 0 | C35: ='Template Cold Room (ab. ground)'!E29*'Template Cold Room (ab. ground)'!E30 -> 0
A36: Room 3 | B36: ='A2L Calculator (above ground)'!D45*'A2L Calculator (above ground)'!D46 -> 0 | C36: ='Template Cold Room (ab. ground)'!E32*'Template Cold Room (ab. ground)'!E33 -> 0
B37: =MIN(IF(B34:B36<>0,B34:B36)) -> 100 | C37: =MIN(IF(C34:C36<>0,C34:C36)) -> 250
A38: Volume 1 | B38: ='A2L Calculator (above ground)'!D37*'A2L Calculator (above ground)'!F37*'A2L Calculator (above ground)'!D38 -> 250 | C38: ='Template Cold Room (ab. ground)'!E26*'Template Cold Room (ab. ground)'!H26*'Template Cold Room (ab. ground)'!E27 -> 5000
A39: Volume 2 | B39: ='A2L Calculator (above ground)'!D41*'A2L Calculator (above ground)'!D42*'A2L Calculator (above ground)'!F41 -> 0 | C39: ='Template Cold Room (ab. ground)'!E29*'Template Cold Room (ab. ground)'!H29*'Template Cold Room (ab. ground)'!E30 -> 0
A40: Volume 3 | B40: ='A2L Calculator (above ground)'!D45*'A2L Calculator (above ground)'!D46*'A2L Calculator (above ground)'!F45 -> 0 | C40: ='Template Cold Room (ab. ground)'!E32*'Template Cold Room (ab. ground)'!H32*'Template Cold Room (ab. ground)'!E33 -> 0
B41: =MIN(IF(B38:B40<>0,B38:B40)) -> 250 | C41: =MIN(IF(C38:C40<>0,C38:C40)) -> 5000

Sheet Bezüge (hidden)
B3: Aufstellungsort Klassifikationen
B4: Class I | C4: Mechanical equipment located within the occupied space If the refrigerating system or refrigerant-containing parts are located in the occupied space, then the system is considered to be of class I unless the system complies with the requirements of class II.
B5: Class II | C5: Compressors in machinery room or open air If all compressors and pressure vessels are either located in a machinery room or in the open air then the requirements for a class II location shall apply unless the system complies with the requirements of class III. Coils and pipework including valves may be located in an occupied space.
B6: Class III | C6: Machinery room or open air If all refrigerant-containing parts are located in a machinery room or open air then the requirements for a class III location shall apply. The machinery room shall fulfil the requirements of EN 378-3.
B7: Class IV | C7: Ventilated enclosure If all refrigerant-containing parts are located in a ventilated enclosure then the requirements for a class IV location shall apply. The ventilated enclosure shall fulfil the requirements of EN 378-2 and EN 378-3.
B9: a | C9: Rooms, parts of buildings, building where — sleeping facilities are provided, people are restricted in their movement, an uncontrolled number of people are present, any person has access without being personally acquainted with the necessary safety precautions
B10: b | C10: Rooms, parts of buildings, buildings where only a limited number of people may be assembled, some being necessarily acquainted with the general safety precautions of the establishment
B11: c | C11: Rooms, parts of buildings, buildings where only authorized persons have access, who are acquainted with general and special safety precautions of the establishment and where manufacturing, processing or storage of material or products take place
B13: example | C13: Hospitals, courts or prisons, theatres, supermarkets, schools, lecture halls, public transport termini, hotels, dwellings, restaurants
B14: example | C14: Business or professional offices, laboratories, places for general manufacturing and where people work
B15: example | C15: Manufacturing facilities, e.g. for chemicals, food, beverage, ice, ice-cream, refineries, cold stores, dairies, abattoirs, non-public areas in supermarkets
B17: Aplication
B18: Human Comfort
B19: Other Application
B20: < 1 Person per 10m²
B22: Refrigerant
B23: Fluid | C23: LFL
B24: R1234yf | C24: 0.289 | D24: (GWP = 4)
B25: R454C | C25: 0.293 | D25: (GWP = 148)
B26: R454A | C26: 0.278 | D26: (GWP = 239)
B27: R454B | C27: 0.303 | D27: (GWP = 466)
B28: R452B | C28: 0.31 | D28: (GWP = 698)
B29: R32 | C29: 0.307 | D29: (GWP = 675)
B30: R455A | C30: 0.431 | D30: (GWP = 146)
B31: R152a | C31: 0.13 | D31: (GWP = 120)
B32: R1234ze | C32: 0.303 | D32: (GWP = 6)
B36: Height Factor
B37: Floor Location
B38: Window Mounted
B39: Wall Mounted
B40: Ceiling Mounted
B43: Specified filling quantity is permitted for this application under these conditions, as required filling quantity is < 4*LFL*1.5
B45: *Sealed system: Refrigerating system in which all refrigerant containing parts are made tight by welding, brazing or a similar permanent connection which may include capped valves and capped service ports that allow proper repair or disposal and which have a tested leakage rate of less than 3 grams per year under a pressure of at least a quarter of the maximum allowable pressure

Sheet Template Cold Room (ab. ground) (hidden)
B2: Emerson A2L -Calculator
B5: Enter the Location, Access Categories and Refrigerant using the drop down list. Type in the room dimensions and estimated refrigerant charge.
B6: (Always refer to the full EN 378:2016 standard to ensure all the necessary requirements are fulfilled)
C9: Location Classification: | D9: Class II | F9: =IF(V9=a,Bezüge!C4,IF('Template Cold Room (ab. ground)'!V9=b,Bezüge!C5,IF('Template Cold Room (ab. ground)'!V9=e,Bezüge!C6,Bezüge!C7))) -> Compressors in machinery room or open air If all compressors and pressure vessels are either located in a machinery room or in the open air then the requirements for a class II location shall apply unless the system complies with the requirements of class III. Coils and pipework including valves may be located in an occupied space. | Q9: =IF(D9="Class I","1",IF(D9="Class II","2",IF(D9="Class III","3","4"))) -> 2 | R9: =Q9&Q21 -> 2OA | V9: =IF(D9=a,a,IF(D9=b,b,IF(D9=e,e,d))) -> Class II
K13: Examples:
C14: Access Category: | D14: c | F14: =IF(V14=f,Bezüge!C9,IF(V14=g,Bezüge!C10,Bezüge!C11)) -> Rooms, parts of buildings, buildings where only authorized persons have access, who are acquainted with general and special safety precautions of the establishment and where manufacturing, processing or storage of material or products take place | K14: =IF(V14=f,Bezüge!C13,IF(V14=g,Bezüge!C14,Bezüge!C15)) -> Manufacturing facilities, e.g. for chemicals, food, beverage, ice, ice-cream, refineries, cold stores, dairies, abattoirs, non-public areas in supermarkets | Q14: =IF(D14="a","a",IF(D14="b","b","c")) -> c | R14: =Q14&Q9 -> c2 | V14: =IF(D14=f,f,IF(D14=g,g,h)) -> c
F20: Examples:
C21: Application: | D21: Other Application | F21: =IF(Q21="HC", "Heatpump, Air Conditioning",IF(Q21="oa","MT-System, LT-System, Chiller System etc.",IF(Q21="1Pers","WARNING: Only Valid for Location Class I or II and Access Category c",""))) -> MT-System, LT-System, Chiller System etc. | Q21: =IF(D21="Human Comfort","HC",IF(D21="other application","OA","1Pers")) -> OA | R21: =IF(OR(Q21="OA",Q21="1Pers"),"1","") -> 1 | S21: =R21&Q14&Q9 -> 1c2 | V21: =IF(D21=i,i,IF(D21=j,j,k)) -> Other Application
F22: LFL:
C23: Refrigerant: | D23: R455A | E23: =IF(D23=l,Bezüge!D24,IF(D23=m,Bezüge!D25,IF(D23=n,Bezüge!D26,IF(D23=o,Bezüge!D27,IF(D23=p,Bezüge!D28,IF(D23=q,Bezüge!D29,IF(D23=u,Bezüge!D30,IF(D23=w,Bezüge!D31,Bezüge!D32)))))))) -> (GWP = 146) | F23: =IF(D23=l,Bezüge!C24,IF(D23=m,Bezüge!C25,IF(D23=n,Bezüge!C26,IF(D23=o,Bezüge!C27,IF(D23=p,Bezüge!C28,IF(D23=q,Bezüge!C29,IF(D23=u,Bezüge!C30,IF(D23=w,Bezüge!C31,Bezüge!C32)))))))) -> 0.431 | Q23: =IF(D23="R454C","1",IF(D23="R454A","2",IF(D23="R454B","3",IF(D23="R452B","4",IF(D23="R32","5",IF(D23="R455A","6",IF(D23="R152a","7",IF(D23="R1234yf","8",IF(D23="R1234ze","9",""))))))))) -> 6
B25: Room Dimensions / m:
C26: Room 1: | D26: Length: | E26: 5 | G26: Height: | H26: 20
D27: Width: | E27: 50
C29: Room 2: | D29: Length: | G29: Height:
D30: Widht:
C32: Room 3: | D32: Length: | G32: Height:
D33: Widht:
G35: Height Factor: | H35: Window Mounted | I35: =IF(H35=Bezüge!B37,"0,6",IF(H35=Bezüge!B38,"1",IF(H35=Bezüge!B39,"1,8","2,2"))) -> 1 | J35: Only for Human Comfort use
C36: =IF(Q21="HC","Actual Room Area:","") ->  | D36: =IF(Q21="HC",Berechnungen!B37,"") -> 
C37: =IF(OR(Q21="OA",Q21="1Pers"),"Actual Room Volume","") -> Actual Room Volume | D37: =IF(OR(Q21="OA",Q21="1Pers"),Berechnungen!C41,"") -> 5000
B39: Refrigerant Charge Limits / kg: | Q39: m²
C41: Required Refrigerant Charge / kg (optional): | D41: 20
M42: =IF(AND(R9="1HC",D41>Berechnungen!B21,D41<=Berechnungen!B22),"Minimum floor area for a Non-Fixed Factory Sealed Single Packaged AC or Heat Pump Unit with a charge of "&D41&"kg","") -> 
H43: =IF(AND(R9="1HC",D41>Berechnungen!B21,D41<=Berechnungen!B22),"Maximum Charge for a Non-Fixed Factory Sealed Single Packaged AC or Heat Pump Unit in a "&A_2&"m² room","") -> 
D44: =IF(Berechnungen!D27="1","Non-Sealed System","") ->  | F44: =IF(AND(Berechnungen!F5>'Template Cold Room (ab. ground)'!D45,Berechnungen!D27="1"),"Sealed System","") -> 
C45: =IF(Q21="hc","EN 378 Appendix C2:","EN 378 Appendix C1:") -> EN 378 Appendix C1: | D45: =IF(Berechnungen!E34<Berechnungen!F34,Berechnungen!E34,Berechnungen!F34) -> 25 | F45: =IF(AND(Berechnungen!F5>'Template Cold Room (ab. ground)'!D45,Berechnungen!D27="1"),Berechnungen!F5,"") ->  | I45: =IF(AND(R9="1HC",D41>Berechnungen!B21,D41<=Berechnungen!B22),Berechnungen!C24,"") ->  | N45: =IF(AND(R9="1HC",D41>Berechnungen!B21,D41<=Berechnungen!B22),Berechnungen!B25,"") -> 
D48: =IF(OR(Berechnungen!G7="2c1Pers",Q9="3"),Berechnungen!C17," ") -> 
C50: Additional filling quantities in conjunction with additional measures according to DIN EN 378
D51: Non-Sealed System | F51: =IF(AND(Berechnungen!F5>'Template Cold Room (ab. ground)'!D45,Berechnungen!D27="1"),"Sealed System","") ->  | I51: Systems where the rated cooling (heating) capacity of the indoor unit is not more than 25 % of the total cooling (heating) capacity of the outdoor unit systems and where pipes serving equipment in the occupied space in question are not oversized relative to the capacity of that equipment, where the heat exchanger in the indoor unit and the control of the system are designed to prevent damage due to ice formation, where the refrigerant-containing parts of the indoor unit are protected against fan breakage or the fan is designed to prevent breakage, systems where only permanent joints are used in the occupied space in question except for site-made joints directly connecting the indoor unit to the piping,where the refrigerant-containing pipes in the occupied space in question are installed in such way that it is protected against accidental damage in accordance with EN 378-2:2016, 6.2.3.3.4 and EN 378-3:2016, 6.2, alternative provisions to ensure safety are provided in accordance with EN 378-1:2016, C.3.2.2 and C.3.2.3, doors of the occupied space are not tight-fitting and the effect of flow down is mitigated in accordance with C.3.2.4. If the value exceeds the QLMV, appropriate measures such as ventilation (natural or mechanical), safety shut-off valves and safety alarm, in conjunction with a gas detection device, see in EN 378-3:2016, Clauses 6, 8, 9 and 10. A safety alarm alone shall not be considered as an appropriate measure where occupants are restricted in their movement. (see EN 378-3:2016, 8.1) shall be taken.
C52: EN 378 Appendix C3 (QLAV): | D52: ='QLAV & QLMV'!D102 -> 84.045 | F52: ='QLAV & QLMV'!D101 -> 84.045
D54: Non-Sealed System | F54: =IF(AND(Berechnungen!F5>'Template Cold Room (ab. ground)'!D45,Berechnungen!D27="1"),"Sealed System","") -> 
C55: EN 378 Appendix C3 (QLMV): | D55: ='QLAV & QLMV'!C102 -> 84.045 | F55: ='QLAV & QLMV'!C101 -> 16.809

Sheet Pictures (hidden)
A1: Class1 | D1: =IF('A2L Calculator (above ground)'!AB7="1","Class1",IF('A2L Calculator (above ground)'!AB7="2","Class2",IF('A2L Calculator (above ground)'!AB7="3","Class3","Class4"))) -> Class1
A2: Class2
A3: Class3
A4: Class4
A6: a | D6: =IF('A2L Calculator (above ground)'!AB14="a","aaa",IF('A2L Calculator (above ground)'!AB14="b","bbb","ccc")) -> aaa
A7: b
A8: c
A11: =Bild -> 0

Sheet QLAV & QLMV (hidden)
Q8: R454C | R8: 0.293
Q9: R1234yf | R9: 0.289
Q10: R454A | R10: 0.278
Q11: R454B | R11: 0.303
Q12: R452B | R12: 0.31
Q13: R32 | R13: 0.307
Q14: R455A | R14: 0.431
Q15: R290 | R15: =0.15/4 -> 0.0375
Q16: R152a | R16: 0.13
Q17: R1234ze | R17: 0.303
B21: Max. Füllmenge für QLMV und QLAV: Raumvolumen * QLAV bzw. QLMV
B22: Wichtig ist dass die Füllmenge 130*LFL*1,5 nicht überschreiten darf !!!!
A25: O | B25: A | D25: <1Pers | H25: OAa11
H29: m3 | I29: m2 | J29: m1 | P29: Aktuelle Anwendung im Rechner
B30: Refrigerant | C30: QLMV | D30: QLAV | E30: RV/Refri.Carge | G30: Max. Carge QLMV/QLAV | H30: 130*LFL*1,5 | I30: 26*LFL*1,5 | J30: 4*LFL*1,5 | K30: QLMV MAX | L30: QLAV MAX | M30: QLAV result | P30: ='A2L Calculator (above ground)'!AB24&'A2L Calculator (above ground)'!AB14&'A2L Calculator (above ground)'!AB7&'A2L Calculator (above ground)'!AB31 -> HCa11
B31: R454c | C31: 0.061 | D31: 0.14 | E31: ='A2L Calculator (above ground)'!D52/'A2L Calculator (above ground)'!D50 ->  | F31: =IF(E31<=C31,C31,D31) ->  | G31: ='A2L Calculator (above ground)'!D50*F31 ->  | H31: =130*R8*1.5 -> 57.135 | I31: =26*R8*1.5 -> 11.427 | J31: =4*LFL454C*1.5 -> 1.758 | K31: ='A2L Calculator (above ground)'!D50*C31 ->  | L31: ='A2L Calculator (above ground)'!D50*D31 ->  | M31: =IF(L31>H31,H31,L31) -> 
B32: R454A | C32: 0.058 | D32: 0.13 | E32: ='A2L Calculator (above ground)'!D52/'A2L Calculator (above ground)'!D50 ->  | F32: =IF(E32<=C32,C32,D32) ->  | G32: ='A2L Calculator (above ground)'!D50*F32 ->  | H32: =130*R10*1.5 -> 54.21 | I32: =26*R10*1.5 -> 10.842 | J32: =4*LFL454A*1.5 -> 1.668 | K32: ='A2L Calculator (above ground)'!D50*C32 ->  | L32: ='A2L Calculator (above ground)'!D50*D32 -> 
B33: R454B | C33: 0.064 | D33: 0.15 | E33: ='A2L Calculator (above ground)'!D52/'A2L Calculator (above ground)'!D50 ->  | G33: ='A2L Calculator (above ground)'!D50*F33 ->  | H33: =130*R11*1.5 -> 59.085 | I33: =26*R11*1.5 -> 11.817 | J33: =4*LFL454B*1.5 -> 1.818 | K33: ='A2L Calculator (above ground)'!D50*C33 ->  | L33: ='A2L Calculator (above ground)'!D50*D33 -> 
B34: R452B | C34: 0.065 | D34: 0.15 | E34: ='A2L Calculator (above ground)'!D52/'A2L Calculator (above ground)'!D50 ->  | G34: ='A2L Calculator (above ground)'!D50*F34 ->  | H34: =130*R12*1.5 -> 60.45 | I34: =26*R12*1.5 -> 12.09 | J34: =4*LFL452B*1.5 -> 1.86 | K34: ='A2L Calculator (above ground)'!D50*'QLAV & QLMV'!C34 ->  | L34: ='A2L Calculator (above ground)'!D50*D34 -> 
B35: R32 | C35: 0.063 | D35: 0.15 | E35: ='A2L Calculator (above ground)'!D52/'A2L Calculator (above ground)'!D50 ->  | G35: ='A2L Calculator (above ground)'!D50*F35 ->  | H35: =130*R13*1.5 -> 59.865 | I35: =26*R13*1.5 -> 11.973 | J35: =4*LFL32a*1.5 -> 1.842 | K35: ='A2L Calculator (above ground)'!D50*C35 ->  | L35: ='A2L Calculator (above ground)'!D50*D35 -> 
B36: R455A | C36: 0.092 | D36: 0.21 | E36: ='A2L Calculator (above ground)'!D52/'A2L Calculator (above ground)'!D50 ->  | G36: ='A2L Calculator (above ground)'!D50*F36 ->  | H36: =130*R14*1.5 -> 84.045 | I36: =26*R14*1.5 -> 16.809 | J36: =4*LFL455A*1.5 -> 2.586 | K36: ='A2L Calculator (above ground)'!D50*C36 ->  | L36: ='A2L Calculator (above ground)'!D50*D36 -> 
B37: R152a | F37: 0
B38: R1234yf | C38: 0.06 | D38: 0.14 | E38: ='A2L Calculator (above ground)'!D52/'A2L Calculator (above ground)'!D50 ->  | G38: ='A2L Calculator (above ground)'!D50*F38 ->  | H38: =130*R9*1.5 -> 56.355 | I38: =26*R9*1.5 -> 11.271 | J38: =4*LFL1234yf*1.5 -> 1.734 | K38: ='A2L Calculator (above ground)'!D50*C38 ->  | L38: ='A2L Calculator (above ground)'!D50*D38 ->  | M38: =IF(L38>H38,H38,L38) -> 
B39: R1234ze | C39: 0.063 | D39: 0.15 | E39: ='A2L Calculator (above ground)'!D52/'A2L Calculator (above ground)'!D50 ->  | G39: ='A2L Calculator (above ground)'!D50*F39 ->  | H39: =130*R17*1.5 -> 59.085 | I39: =26*R17*1.5 -> 11.817 | J39: =4*LFL1234ze*1.5 -> 1.818 | K39: ='A2L Calculator (above ground)'!D50*C39 ->  | L39: ='A2L Calculator (above ground)'!D50*D39 ->  | M39: =IF(L39>H39,H39,L39) -> 
B40: ='A2L Calculator (above ground)'!D31 -> R454C | C40: =IF(B40="R454c",C31,IF(B40="R454A",C32,IF(B40="R454B",C33,IF(B40="R452B",C34,IF(B40="R32",C35,IF(B40="R455A",C36,IF(B40="R1234yf",C38,IF(B40="R1234ze",C39,"")))))))) -> 0.061 | D40: =IF(B40="R454c",D31,IF(B40="R454A",D32,IF(B40="R454B",D33,IF(B40="R452B",D34,IF(B40="R32",D35,IF(B40="R455A",D36,IF(B40="R1234yf",D38,IF(B40="R1234ze",D39,"")))))))) -> 0.14 | E40: ='A2L Calculator (above ground)'!D52/'A2L Calculator (above ground)'!D50 ->  | F40: =IF(E40<=QLMV,QLMV,D40) ->  | G40: ='A2L Calculator (above ground)'!D50*F40 ->  | H40: =130*LFL*1.5 -> 57.135 | I40: =26*LFL*1.5 -> 11.427 | J40: =4*LFL*1.5 -> 1.758 | K40: ='A2L Calculator (above ground)'!D50*C40 ->  | L40: ='A2L Calculator (above ground)'!D50*D40 ->  | M40: =IF(L40>H40,H40,L40) -> 
B41: OAaIC1 | C41: OAaIQLMV | D41: OAaIQLAV | E41: OAaIIC1 | F41: OAaIIQLMV | G41: OAaIIQLAV | H41: OAbIC1 | I41: OAbIQLMV | J41: OAbIQLAV | K41: OAbIIC1 | L41: OAbIIQLMV | M41: OAbIIQLAV | N41: OAcIC1 | O41: OAcIQLMV | P41: OAcIQLAV | Q41: OAcIIC1 | R41: OAcIIQLMV | S41: OAcIIQLAV | T41: <1PerscIC1 | U41: <1PErscIQLMV | V41: <1PerscIQLAV | W41: <1PerscIIC1 | X41: aIII | Y41: bIII | Z41: cIII | AA41: aIV | AB41: bIV | AC41: cIV
A42: R454c | B42: =IF(IF(0.2*LFL454C*'A2L Calculator (above ground)'!D50>I31,I31,0.2*LFL454C*'A2L Calculator (above ground)'!D50)<J31,J31,IF(0.2*LFL454C*'A2L Calculator (above ground)'!D50>I31,I31,0.2*LFL454C*'A2L Calculator (above ground)'!D50)) ->  | C42: =B42 ->  | D42: =B42 ->  | E42: =IF(IF(0.2*LFL454C*'A2L Calculator (above ground)'!D50>I31,I31,0.2*LFL454C*'A2L Calculator (above ground)'!D50)<J31,J31,IF(0.2*LFL454C*'A2L Calculator (above ground)'!D50>I31,I31,0.2*LFL454C*'A2L Calculator (above ground)'!D50)) ->  | F42: =IF(IF(K31>H31,H31,K31)<J31,J31,IF(K31>H31,H31,K31)) ->  | G42: =IF(IF(L31>H31,H31,L31)<J31,J31,IF(L31>H31,H31,L31)) ->  | H42: =IF(IF(0.2*LFL454C*'A2L Calculator (above ground)'!D50>I31,I31,0.2*LFL454C*'A2L Calculator (above ground)'!D50)<J31,J31,IF(0.2*LFL454C*'A2L Calculator (above ground)'!D50>I31,I31,0.2*LFL454C*'A2L Calculator (above ground)'!D50)) ->  | I42: =H42 ->  | J42: =H42 ->  | K42: =IF(IF(0.2*R8*'A2L Calculator (above ground)'!D50<=25,0.2*R8*'A2L Calculator (above ground)'!D50,25)<J31,J31,IF(0.2*R8*'A2L Calculator (above ground)'!D50<=25,0.2*R8*'A2L Calculator (above ground)'!D50,25)) ->  | L42: =IF(IF(K31>H31,H31,K31)<J31,J31,IF(K31>H31,H31,K31)) ->  | M42: =IF(IF(L31>H31,H31,L31)<J31,J31,IF(L31>H31,H31,L31)) ->  | N42: =IF(IF(0.2*LFL454C*'A2L Calculator (above ground)'!D50>I31,I31,0.2*LFL454C*'A2L Calculator (above ground)'!D50)<J31,J31,IF(0.2*LFL454C*'A2L Calculator (above ground)'!D50>I31,I31,0.2*LFL454C*'A2L Calculator (above ground)'!D50)) ->  | O42: =N42 ->  | P42: =N42 ->  | Q42: =IF(IF(0.2*R8*'A2L Calculator (above ground)'!D50<=25,0.2*R8*'A2L Calculator (above ground)'!D50,25)<J31,J31,IF(0.2*R8*'A2L Calculator (above ground)'!D50<=25,0.2*R8*'A2L Calculator (above ground)'!D50,25)) ->  | R42: =IF(IF(K31>H31,H31,K31)<J31,J31,IF(K31>H31,H31,K31)) ->  | S42: =IF(IF(L31>H31,H31,L31)<J31,J31,IF(L31>H31,H31,L31)) ->  | T42: =IF(IF(0.2*R8*'A2L Calculator (above ground)'!D50<=50,0.2*R8*'A2L Calculator (above ground)'!D50,50)<J31,J31,IF(0.2*R8*'A2L Calculator (above ground)'!D50<=50,0.2*R8*'A2L Calculator (above ground)'!D50,50)) ->  | U42: =T42 ->  | V42: =T42 ->  | W42: No Charge Restriction | X42: No Charge Restriction | Y42: No Charge Restriction | Z42: No Charge Restriction | AA42: =H31 -> 57.135 | AB42: =H31 -> 57.135 | AC42: =H31 -> 57.135
A43: Non Sealed | B43: =0.2*LFL454C*'A2L Calculator (above ground)'!D50 ->  | C43: =0.2*LFL454C*'A2L Calculator (above ground)'!D50 ->  | D43: =0.2*LFL454C*'A2L Calculator (above ground)'!D50 ->  | E43: =0.2*LFL454C*'A2L Calculator (above ground)'!D50 ->  | F43: =IF(IF(K31>H31,H31,K31)<J31,K31,IF(K31>H31,H31,K31)) ->  | G43: =IF(IF(L31>H31,H31,L31)<J31,L31,IF(L31>H31,H31,L31)) ->  | H43: =0.2*LFL454C*'A2L Calculator (above ground)'!D50 ->  | I43: =0.2*LFL454C*'A2L Calculator (above ground)'!D50 ->  | J43: =0.2*LFL454C*'A2L Calculator (above ground)'!D50 ->  | K43: =0.2*LFL454C*'A2L Calculator (above ground)'!D50 ->  | L43: =IF(IF(K31>H31,H31,K31)<J31,K31,IF(K31>H31,H31,K31)) ->  | M43: =IF(IF(L31>H31,H31,L31)<J31,L31,IF(L31>H31,H31,L31)) ->  | N43: =0.2*LFL454C*'A2L Calculator (above ground)'!D50 ->  | O43: =0.2*LFL454C*'A2L Calculator (above ground)'!D50 ->  | P43: =0.2*LFL454C*'A2L Calculator (above ground)'!D50 ->  | Q43: =0.2*LFL454C*'A2L Calculator (above ground)'!D50 ->  | R43: =IF(IF(K31>H31,H31,K31)<J31,K31,IF(K31>H31,H31,K31)) ->  | S43: =IF(IF(L31>H31,H31,L31)<J31,L31,IF(L31>H31,H31,L31)) ->  | T43: =0.2*LFL454C*'A2L Calculator (above ground)'!D50 ->  | U43: =0.2*LFL454C*'A2L Calculator (above ground)'!D50 ->  | V43: =0.2*LFL454C*'A2L Calculator (above ground)'!D50 ->  | W43: No Charge Restriction | AA43: =AA42 -> 57.135 | AB43: =AB42 -> 57.135 | AC43: =AC42 -> 57.135
A44: R454A | B44: =IF(IF(0.2*LFL454A*'A2L Calculator (above ground)'!D50>I32,I32,0.2*LFL454A*'A2L Calculator (above ground)'!D50)<J32,J32,IF(0.2*LFL454A*'A2L Calculator (above ground)'!D50>I32,I32,0.2*LFL454A*'A2L Calculator (above ground)'!D50)) ->  | C44: =B44 ->  | D44: =B44 ->  | E44: =IF(IF(0.2*LFL454A*'A2L Calculator (above ground)'!D50>I32,I32,0.2*LFL454A*'A2L Calculator (above ground)'!D50)<J32,J32,IF(0.2*LFL454A*'A2L Calculator (above ground)'!D50>I32,I32,0.2*LFL454A*'A2L Calculator (above ground)'!D50)) ->  | F44: =IF(IF(K32>H32,H32,K32)<J32,J32,IF(K32>H32,H32,K32)) ->  | G44: =IF(IF(L32>H32,H32,L32)<J32,J32,IF(L32>H32,H32,L32)) ->  | H44: =IF(IF(0.2*LFL454A*'A2L Calculator (above ground)'!D50>I32,I32,0.2*LFL454A*'A2L Calculator (above ground)'!D50)<J32,J32,IF(0.2*LFL454A*'A2L Calculator (above ground)'!D50>I32,I32,0.2*LFL454A*'A2L Calculator (above ground)'!D50)) ->  | I44: =H44 ->  | J44: =H44 ->  | K44: =IF(IF(0.2*LFL454A*'A2L Calculator (above ground)'!D50<=25,0.2*LFL454A*'A2L Calculator (above ground)'!D50,25)<J32,J32,IF(0.2*LFL454A*'A2L Calculator (above ground)'!D50<=25,0.2*LFL454A*'A2L Calculator (above ground)'!D50,25)) ->  | L44: =IF(IF(K32>H32,H32,K32)<J32,J32,IF(K32>H32,H32,K32)) ->  | M44: =IF(IF(L32>H32,H32,L32)<J32,J32,IF(L32>H32,H32,L32)) ->  | N44: =IF(IF(0.2*LFL454A*'A2L Calculator (above ground)'!D50>I32,I32,0.2*LFL454A*'A2L Calculator (above ground)'!D50)<J32,J32,IF(0.2*LFL454A*'A2L Calculator (above ground)'!D50>I32,I32,0.2*LFL454A*'A2L Calculator (above ground)'!D50)) ->  | O44: =N44 ->  | P44: =N44 ->  | Q44: =IF(IF(0.2*LFL454A*'A2L Calculator (above ground)'!D50<=25,0.2*LFL454A*'A2L Calculator (above ground)'!D50,25)<J32,J32,IF(0.2*LFL454A*'A2L Calculator (above ground)'!D50<=25,0.2*LFL454A*'A2L Calculator (above ground)'!D50,25)) ->  | R44: =IF(IF(K32>H32,H32,K32)<J32,J32,IF(K32>H32,H32,K32)) ->  | S44: =IF(IF(L32>H32,H32,L32)<J32,J32,IF(L32>H32,H32,L32)) ->  | T44: =IF(IF(0.2*LFL454A*'A2L Calculator (above ground)'!D50<=50,0.2*LFL454A*'A2L Calculator (above ground)'!D50,50)<J32,J32,IF(0.2*LFL454A*'A2L Calculator (above ground)'!D50<=50,0.2*LFL454A*'A2L Calculator (above ground)'!D50,50)) ->  | U44: =T44 ->  | V44: =T44 ->  | W44: No Charge Restriction | X44: No Charge Restriction | Y44: No Charge Restriction | Z44: No Charge Restriction | AA44: =H32 -> 54.21 | AB44: =H32 -> 54.21 | AC44: =H32 -> 54.21
A45: Non Sealed | B45: =0.2*LFL454A*'A2L Calculator (above ground)'!D50 ->  | C45: =0.2*LFL454A*'A2L Calculator (above ground)'!D50 ->  | D45: =0.2*LFL454A*'A2L Calculator (above ground)'!D50 ->  | E45: =0.2*LFL454A*'A2L Calculator (above ground)'!D50 ->  | F45: =IF(IF(K32>H32,H32,K32)<J32,K32,IF(K32>H32,H32,K32)) ->  | G45: =IF(IF(L32>H32,H32,L32)<J32,L32,IF(L32>H32,H32,L32)) ->  | H45: =0.2*LFL454A*'A2L Calculator (above ground)'!D50 ->  | I45: =0.2*LFL454A*'A2L Calculator (above ground)'!D50 ->  | J45: =0.2*LFL454A*'A2L Calculator (above ground)'!D50 ->  | K45: =0.2*LFL454A*'A2L Calculator (above ground)'!D50 ->  | L45: =IF(IF(K32>H32,H32,K32)<J32,K32,IF(K32>H32,H32,K32)) ->  | M45: =IF(IF(L32>H32,H32,L32)<J32,L32,IF(L32>H32,H32,L32)) ->  | N45: =0.2*LFL454A*'A2L Calculator (above ground)'!D50 ->  | O45: =0.2*LFL454A*'A2L Calculator (above ground)'!D50 ->  | P45: =0.2*LFL454A*'A2L Calculator (above ground)'!D50 ->  | Q45: =0.2*LFL454A*'A2L Calculator (above ground)'!D50 ->  | R45: =IF(IF(K32>H32,H32,K32)<J32,K32,IF(K32>H32,H32,K32)) ->  | S45: =IF(IF(L32>H32,H32,L32)<J32,L32,IF(L32>H32,H32,L32)) ->  | T45: =0.2*LFL454A*'A2L Calculator (above ground)'!D50 ->  | U45: =0.2*LFL454A*'A2L Calculator (above ground)'!D50 ->  | V45: =0.2*LFL454A*'A2L Calculator (above ground)'!D50 ->  | W45: No Charge Restriction | AA45: =AA44 -> 54.21 | AB45: =AB44 -> 54.21 | AC45: =AC44 -> 54.21
A46: R454B | B46: =IF(IF(0.2*LFL454B*'A2L Calculator (above ground)'!D50>I33,I33,0.2*LFL454B*'A2L Calculator (above ground)'!D50)<J33,J33,IF(0.2*LFL454B*'A2L Calculator (above ground)'!D50>I33,I33,0.2*LFL454B*'A2L Calculator (above ground)'!D50)) ->  | C46: =B46 ->  | D46: =B46 ->  | E46: =IF(IF(0.2*LFL454B*'A2L Calculator (above ground)'!D50>I33,I33,0.2*LFL454B*'A2L Calculator (above ground)'!D50)<J33,J33,IF(0.2*LFL454B*'A2L Calculator (above ground)'!D50>I33,I33,0.2*LFL454B*'A2L Calculator (above ground)'!D50)) ->  | F46: =IF(IF(K33>H33,H33,K33)<J33,J33,IF(K33>H33,H33,K33)) ->  | G46: =IF(IF(L33>H33,H33,L33)<J33,J33,IF(L33>H33,H33,L33)) ->  | H46: =IF(IF(0.2*LFL454B*'A2L Calculator (above ground)'!D50>I33,I33,0.2*LFL454B*'A2L Calculator (above ground)'!D50)<J33,J33,IF(0.2*LFL454B*'A2L Calculator (above ground)'!D50>I33,I33,0.2*LFL454B*'A2L Calculator (above ground)'!D50)) ->  | I46: =H46 ->  | J46: =H46 ->  | K46: =IF(IF(0.2*LFL454B*'A2L Calculator (above ground)'!D50<=25,0.2*LFL454B*'A2L Calculator (above ground)'!D50,25)<J33,J33,IF(0.2*LFL454B*'A2L Calculator (above ground)'!D50<=25,0.2*LFL454B*'A2L Calculator (above ground)'!D50,25)) ->  | L46: =IF(IF(K33>H33,H33,K33)<J33,J33,IF(K33>H33,H33,K33)) ->  | M46: =IF(IF(L33>H33,H33,L33)<J33,J33,IF(L33>H33,H33,L33)) ->  | N46: =IF(IF(0.2*LFL454B*'A2L Calculator (above ground)'!D50>I33,I33,0.2*LFL454B*'A2L Calculator (above ground)'!D50)<J33,J33,IF(0.2*LFL454B*'A2L Calculator (above ground)'!D50>I33,I33,0.2*LFL454B*'A2L Calculator (above ground)'!D50)) ->  | O46: =N46 ->  | P46: =N46 ->  | Q46: =IF(IF(0.2*LFL454B*'A2L Calculator (above ground)'!D50<=25,0.2*LFL454B*'A2L Calculator (above ground)'!D50,25)<J33,J33,IF(0.2*LFL454B*'A2L Calculator (above ground)'!D50<=25,0.2*LFL454B*'A2L Calculator (above ground)'!D50,25)) ->  | R46: =IF(IF(K33>H33,H33,K33)<J33,J33,IF(K33>H33,H33,K33)) ->  | S46: =IF(IF(L33>H33,H33,L33)<J33,J33,IF(L33>H33,H33,L33)) ->  | T46: =IF(IF(0.2*LFL454B*'A2L Calculator (above ground)'!D50<=50,0.2*LFL454B*'A2L Calculator (above ground)'!D50,50)<J33,J33,IF(0.2*LFL454B *'A2L Calculator (above ground)'!D50<=50,0.2*LFL454B*'A2L Calculator (above ground)'!D50,50)) ->  | U46: =T46 ->  | V46: =T46 ->  | W46: No Charge Restriction | X46: No Charge Restriction | Y46: No Charge Restriction | Z46: No Charge Restriction | AA46: =H33 -> 59.085 | AB46: =H33 -> 59.085 | AC46: =H33 -> 59.085
A47: Non Sealed | B47: =0.2*LFL454B*'A2L Calculator (above ground)'!D50 ->  | C47: =0.2*LFL454B*'A2L Calculator (above ground)'!D50 ->  | D47: =0.2*LFL454B*'A2L Calculator (above ground)'!D50 ->  | E47: =0.2*LFL454B*'A2L Calculator (above ground)'!D50 ->  | F47: =IF(IF(K33>H33,H33,K33)<J33,K33,IF(K33>H33,H33,K33)) ->  | G47: =IF(IF(L33>H33,H33,L33)<J33,L33,IF(L33>H33,H33,L33)) ->  | H47: =0.2*LFL454B*'A2L Calculator (above ground)'!D50 ->  | I47: =0.2*LFL454B*'A2L Calculator (above ground)'!D50 ->  | J47: =0.2*LFL454B*'A2L Calculator (above ground)'!D50 ->  | K47: =0.2*LFL454B*'A2L Calculator (above ground)'!D50 ->  | L47: =IF(IF(K33>H33,H33,K33)<J33,K33,IF(K33>H33,H33,K33)) ->  | M47: =IF(IF(L33>H33,H33,L33)<J33,L33,IF(L33>H33,H33,L33)) ->  | N47: =0.2*LFL454B*'A2L Calculator (above ground)'!D50 ->  | O47: =0.2*LFL454B*'A2L Calculator (above ground)'!D50 ->  | P47: =0.2*LFL454B*'A2L Calculator (above ground)'!D50 ->  | Q47: =0.2*LFL454B*'A2L Calculator (above ground)'!D50 ->  | R47: =IF(IF(K33>H33,H33,K33)<J33,K33,IF(K33>H33,H33,K33)) ->  | S47: =IF(IF(L33>H33,H33,L33)<J33,L33,IF(L33>H33,H33,L33)) ->  | T47: =0.2*LFL454B*'A2L Calculator (above ground)'!D50 ->  | U47: =0.2*LFL454B*'A2L Calculator (above ground)'!D50 ->  | V47: =0.2*LFL454B*'A2L Calculator (above ground)'!D50 ->  | W47: No Charge Restriction | AA47: =AA46 -> 59.085 | AB47: =AB46 -> 59.085 | AC47: =AC46 -> 59.085
A48: R452B | B48: =IF(IF(0.2*LFL452B*'A2L Calculator (above ground)'!D50>I34,I34,0.2*LFL452B*'A2L Calculator (above ground)'!D50)<J34,J34,IF(0.2*LFL452B*'A2L Calculator (above ground)'!D50>I34,I34,0.2*LFL452B*'A2L Calculator (above ground)'!D50)) ->  | C48: =B48 ->  | D48: =B48 ->  | E48: =IF(IF(0.2*LFL452B*'A2L Calculator (above ground)'!D50>I34,I34,0.2*LFL452B*'A2L Calculator (above ground)'!D50)<J34,J34,IF(0.2*LFL452B*'A2L Calculator (above ground)'!D50>I34,I34,0.2*LFL452B*'A2L Calculator (above ground)'!D50)) ->  | F48: =IF(IF(K34>H34,H34,K34)<J34,J34,IF(K34>H34,H34,K34)) ->  | G48: =IF(IF(L34>H34,H34,L34)<J34,J34,IF(L34>H34,H34,L34)) ->  | H48: =IF(IF(0.2*LFL452B*'A2L Calculator (above ground)'!D50>I34,I34,0.2*LFL452B*'A2L Calculator (above ground)'!D50)<J34,J34,IF(0.2*LFL452B*'A2L Calculator (above ground)'!D50>I34,I34,0.2*LFL452B*'A2L Calculator (above ground)'!D50)) ->  | I48: =H48 ->  | J48: =H48 ->  | K48: =IF(IF(0.2*LFL452B*'A2L Calculator (above ground)'!D50<=25,0.2*LFL452B*'A2L Calculator (above ground)'!D50,25)<J34,J34,IF(0.2*LFL452B*'A2L Calculator (above ground)'!D50<=25,0.2*LFL452B*'A2L Calculator (above ground)'!D50,25)) ->  | L48: =IF(IF(K34>H34,H34,K34)<J34,J34,IF(K34>H34,H34,K34)) ->  | M48: =IF(IF(L34>H34,H34,L34)<J34,J34,IF(L34>H34,H34,L34)) ->  | N48: =IF(IF(0.2*LFL452B*'A2L Calculator (above ground)'!D50>I34,I34,0.2*LFL452B*'A2L Calculator (above ground)'!D50)<J34,J34,IF(0.2*LFL452B*'A2L Calculator (above ground)'!D50>I34,I34,0.2*LFL452B*'A2L Calculator (above ground)'!D50)) ->  | O48: =N48 ->  | P48: =N48 ->  | Q48: =IF(IF(0.2*LFL452B*'A2L Calculator (above ground)'!D50<=25,0.2*LFL452B*'A2L Calculator (above ground)'!D50,25)<J34,J34,IF(0.2*LFL452B*'A2L Calculator (above ground)'!D50<=25,0.2*LFL452B*'A2L Calculator (above ground)'!D50,25)) ->  | R48: =IF(IF(K34>H34,H34,K34)<J34,J34,IF(K34>H34,H34,K34)) ->  | S48: =IF(IF(L34>H34,H34,L34)<J34,J34,IF(L34>H34,H34,L34)) ->  | T48: =IF(IF(0.2*LFL452B*'A2L Calculator (above ground)'!D50<=50,0.2*LFL452B*'A2L Calculator (above ground)'!D50,50)<J34,J34,IF(0.2*LFL452B *'A2L Calculator (above ground)'!D50<=50,0.2*LFL452B*'A2L Calculator (above ground)'!D50,50)) ->  | U48: =T48 ->  | V48: =T48 ->  | W48: No Charge Restriction | X48: No Charge Restriction | Y48: No Charge Restriction | Z48: No Charge Restriction | AA48: =H34 -> 60.45 | AB48: =H34 -> 60.45
A49: Non Sealed | B49: =0.2*LFL452B*'A2L Calculator (above ground)'!D50 ->  | C49: =0.2*LFL452B*'A2L Calculator (above ground)'!D50 ->  | D49: =0.2*LFL452B*'A2L Calculator (above ground)'!D50 ->  | E49: =0.2*LFL452B*'A2L Calculator (above ground)'!D50 ->  | F49: =IF(IF(K34>H34,H34,K34)<J34,K34,IF(K34>H34,H34,K34)) ->  | G49: =IF(IF(L34>H34,H34,L34)<J34,L34,IF(L34>H34,H34,L34)) ->  | H49: =0.2*LFL452B*'A2L Calculator (above ground)'!D50 ->  | I49: =0.2*LFL452B*'A2L Calculator (above ground)'!D50 ->  | J49: =0.2*LFL452B*'A2L Calculator (above ground)'!D50 ->  | K49: =0.2*LFL452B*'A2L Calculator (above ground)'!D50 ->  | L49: =IF(IF(K34>H34,H34,K34)<J34,K34,IF(K34>H34,H34,K34)) ->  | M49: =IF(IF(L34>H34,H34,L34)<J34,L34,IF(L34>H34,H34,L34)) ->  | N49: =0.2*LFL452B*'A2L Calculator (above ground)'!D50 ->  | O49: =0.2*LFL452B*'A2L Calculator (above ground)'!D50 ->  | P49: =0.2*LFL452B*'A2L Calculator (above ground)'!D50 ->  | Q49: =0.2*LFL452B*'A2L Calculator (above ground)'!D50 ->  | R49: =IF(IF(K34>H34,H34,K34)<J34,K34,IF(K34>H34,H34,K34)) ->  | S49: =IF(IF(L34>H34,H34,L34)<J34,L34,IF(L34>H34,H34,L34)) ->  | T49: =0.2*LFL452B*'A2L Calculator (above ground)'!D50 ->  | U49: =0.2*LFL452B*'A2L Calculator (above ground)'!D50 ->  | V49: =0.2*LFL452B*'A2L Calculator (above ground)'!D50 ->  | W49: No Charge Restriction | AA49: =AA48 -> 60.45 | AB49: =AB48 -> 60.45
A50: R32 | B50: =IF(IF(0.2*LFL32a*'A2L Calculator (above ground)'!D50>I35,I35,0.2*LFL32a*'A2L Calculator (above ground)'!D50)<J35,J35,IF(0.2*LFL32a*'A2L Calculator (above ground)'!D50>I35,I35,0.2*LFL32a*'A2L Calculator (above ground)'!D50)) ->  | C50: =B50 ->  | D50: =B50 ->  | E50: =IF(IF(0.2*LFL32a*'A2L Calculator (above ground)'!D50>I35,I35,0.2*LFL32a*'A2L Calculator (above ground)'!D50)<J35,J35,IF(0.2*LFL32a*'A2L Calculator (above ground)'!D50>I35,I35,0.2*LFL32a*'A2L Calculator (above ground)'!D50)) ->  | F50: =IF(IF(K35>H35,H35,K35)<J35,J35,IF(K35>H35,H35,K35)) ->  | G50: =IF(IF(L35>H35,H35,L35)<J35,J35,IF(L35>H35,H35,L35)) ->  | H50: =IF(IF(0.2*LFL32a*'A2L Calculator (above ground)'!D50>I35,I35,0.2*LFL32a*'A2L Calculator (above ground)'!D50)<J35,J35,IF(0.2*LFL32a*'A2L Calculator (above ground)'!D50>I35,I35,0.2*LFL32a*'A2L Calculator (above ground)'!D50)) ->  | I50: =H50 ->  | J50: =H50 ->  | K50: =IF(IF(0.2*LFL32a*'A2L Calculator (above ground)'!D50<=25,0.2*LFL32a*'A2L Calculator (above ground)'!D50,25)<J35,J35,IF(0.2*LFL32a*'A2L Calculator (above ground)'!D50<=25,0.2*LFL32a*'A2L Calculator (above ground)'!D50,25)) ->  | L50: =IF(IF(K35>H35,H35,K35)<J35,J35,IF(K35>H35,H35,K35)) ->  | M50: =IF(IF(L35>H35,H35,L35)<J35,J35,IF(L35>H35,H35,L35)) ->  | N50: =IF(IF(0.2*LFL32a*'A2L Calculator (above ground)'!D50>I35,I35,0.2*LFL32a*'A2L Calculator (above ground)'!D50)<J35,J35,IF(0.2*LFL32a*'A2L Calculator (above ground)'!D50>I35,I35,0.2*LFL32a*'A2L Calculator (above ground)'!D50)) ->  | O50: =N50 ->  | P50: =N50 ->  | Q50: =IF(IF(0.2*LFL32a*'A2L Calculator (above ground)'!D50<=25,0.2*LFL32a*'A2L Calculator (above ground)'!D50,25)<J35,J35,IF(0.2*LFL32a*'A2L Calculator (above ground)'!D50<=25,0.2*LFL32a*'A2L Calculator (above ground)'!D50,25)) ->  | R50: =IF(IF(K35>H35,H35,K35)<J35,J35,IF(K35>H35,H35,K35)) ->  | S50: =IF(IF(L35>H35,H35,L35)<J35,J35,IF(L35>H35,H35,L35)) ->  | T50: =IF(IF(0.2*LFL32a*'A2L Calculator (above ground)'!D50<=50,0.2*LFL32a*'A2L Calculator (above ground)'!D50,50)<J35,J35,IF(0.2*LFL32a *'A2L Calculator (above ground)'!D50<=50,0.2*LFL32a*'A2L Calculator (above ground)'!D50,50)) ->  | U50: =T50 ->  | V50: =T50 ->  | W50: No Charge Restriction | X50: No Charge Restriction | Y50: No Charge Restriction | Z50: No Charge Restriction | AA50: =H35 -> 59.865 | AB50: =H35 -> 59.865 | AC50: =H35 -> 59.865
A51: Non Sealed | B51: =0.2*LFL32a*'A2L Calculator (above ground)'!D50 ->  | C51: =0.2*LFL32a*'A2L Calculator (above ground)'!D50 ->  | D51: =0.2*LFL32a*'A2L Calculator (above ground)'!D50 ->  | E51: =0.2*LFL32a*'A2L Calculator (above ground)'!D50 ->  | F51: =IF(IF(K35>H35,H35,K35)<J35,K35,IF(K35>H35,H35,K35)) ->  | G51: =IF(IF(L35>H35,H35,L35)<J35,L35,IF(L35>H35,H35,L35)) ->  | H51: =0.2*LFL32a*'A2L Calculator (above ground)'!D50 ->  | I51: =0.2*LFL32a*'A2L Calculator (above ground)'!D50 ->  | J51: =0.2*LFL32a*'A2L Calculator (above ground)'!D50 ->  | K51: =0.2*LFL32a*'A2L Calculator (above ground)'!D50 ->  | L51: =IF(IF(K35>H35,H35,K35)<J35,K35,IF(K35>H35,H35,K35)) ->  | M51: =IF(IF(L35>H35,H35,L35)<J35,L35,IF(L35>H35,H35,L35)) ->  | N51: =0.2*LFL32a*'A2L Calculator (above ground)'!D50 ->  | O51: =0.2*LFL32a*'A2L Calculator (above ground)'!D50 ->  | P51: =0.2*LFL32a*'A2L Calculator (above ground)'!D50 ->  | Q51: =0.2*LFL32a*'A2L Calculator (above ground)'!D50 ->  | R51: =IF(IF(K35>H35,H35,K35)<J35,K35,IF(K35>H35,H35,K35)) ->  | S51: =IF(IF(L35>H35,H35,L35)<J35,L35,IF(L35>H35,H35,L35)) ->  | T51: =0.2*LFL32a*'A2L Calculator (above ground)'!D50 ->  | U51: =0.2*LFL32a*'A2L Calculator (above ground)'!D50 ->  | V51: =0.2*LFL32a*'A2L Calculator (above ground)'!D50 ->  | W51: No Charge Restriction | AA51: =AA50 -> 59.865 | AB51: =AB50 -> 59.865 | AC51: =AC50 -> 59.865
A52: R455A | B52: =IF(IF(0.2*LFL455A*'A2L Calculator (above ground)'!D50>I36,I36,0.2*LFL455A*'A2L Calculator (above ground)'!D50)<J36,J36,IF(0.2*LFL455A*'A2L Calculator (above ground)'!D50>I36,I36,0.2*LFL455A*'A2L Calculator (above ground)'!D50)) ->  | C52: =B52 ->  | D52: =B52 ->  | E52: =IF(IF(0.2*LFL455A*'A2L Calculator (above ground)'!D50>I36,I36,0.2*LFL455A*'A2L Calculator (above ground)'!D50)<J36,J36,IF(0.2*LFL455A*'A2L Calculator (above ground)'!D50>I36,I36,0.2*LFL455A*'A2L Calculator (above ground)'!D50)) ->  | F52: =IF(IF(K36>H36,H36,K36)<J36,J36,IF(K36>H36,H36,K36)) ->  | G52: =IF(IF(L36>H36,H36,L36)<J36,J36,IF(L36>H36,H36,L36)) ->  | H52: =IF(IF(0.2*LFL455A*'A2L Calculator (above ground)'!D50>I36,I36,0.2*LFL455A*'A2L Calculator (above ground)'!D50)<J36,J36,IF(0.2*LFL455A*'A2L Calculator (above ground)'!D50>I36,I36,0.2*LFL455A*'A2L Calculator (above ground)'!D50)) ->  | I52: =H52 ->  | J52: =H52 ->  | K52: =IF(IF(0.2*LFL455A*'A2L Calculator (above ground)'!D50<=25,0.2*LFL455A*'A2L Calculator (above ground)'!D50,25)<J36,J36,IF(0.2*LFL455A*'A2L Calculator (above ground)'!D50<=25,0.2*LFL455A*'A2L Calculator (above ground)'!D50,25)) ->  | L52: =IF(IF(K36>H36,H36,K36)<J36,J36,IF(K36>H36,H36,K36)) ->  | M52: =IF(IF(L36>H36,H36,L36)<J36,J36,IF(L36>H36,H36,L36)) ->  | N52: =IF(IF(0.2*LFL455A*'A2L Calculator (above ground)'!D50>I36,I36,0.2*LFL455A*'A2L Calculator (above ground)'!D50)<J36,J36,IF(0.2*LFL455A*'A2L Calculator (above ground)'!D50>I36,I36,0.2*LFL455A*'A2L Calculator (above ground)'!D50)) ->  | O52: =N52 ->  | P52: =N52 ->  | Q52: =IF(IF(0.2*LFL455A*'A2L Calculator (above ground)'!D50<=25,0.2*LFL455A*'A2L Calculator (above ground)'!D50,25)<J36,J36,IF(0.2*LFL455A*'A2L Calculator (above ground)'!D50<=25,0.2*LFL455A*'A2L Calculator (above ground)'!D50,25)) ->  | R52: =IF(IF(K36>H36,H36,K36)<J36,J36,IF(K36>H36,H36,K36)) ->  | S52: =IF(IF(L36>H36,H36,L36)<J36,J36,IF(L36>H36,H36,L36)) ->  | T52: =IF(IF(0.2*LFL455A*'A2L Calculator (above ground)'!D50<=50,0.2*LFL455A*'A2L Calculator (above ground)'!D50,50)<J36,J36,IF(0.2*LFL455A *'A2L Calculator (above ground)'!D50<=50,0.2*LFL455A*'A2L Calculator (above ground)'!D50,50)) ->  | U52: =T52 ->  | V52: =T52 ->  | W52: No Charge Restriction | X52: No Charge Restriction | Y52: No Charge Restriction | Z52: No Charge Restriction | AA52: =H36 -> 84.045 | AB52: =H36 -> 84.045 | AC52: =H36 -> 84.045
A53: Non Sealed | B53: =0.2*LFL455A*'A2L Calculator (above ground)'!D50 ->  | C53: =0.2*LFL455A*'A2L Calculator (above ground)'!D50 ->  | D53: =0.2*LFL455A*'A2L Calculator (above ground)'!D50 ->  | E53: =0.2*LFL455A*'A2L Calculator (above ground)'!D50 ->  | F53: =IF(IF(K36>H36,H36,K36)<J36,K36,IF(K36>H36,H35,K36)) ->  | G53: =IF(IF(L36>H36,H36,L36)<J36,L36,IF(L36>H36,H36,L36)) ->  | H53: =0.2*LFL455A*'A2L Calculator (above ground)'!D50 ->  | I53: =0.2*LFL455A*'A2L Calculator (above ground)'!D50 ->  | J53: =0.2*LFL455A*'A2L Calculator (above ground)'!D50 ->  | K53: =0.2*LFL455A*'A2L Calculator (above ground)'!D50 ->  | L53: =IF(IF(K36>H36,H36,K36)<J36,K36,IF(K36>H36,H36,K36)) ->  | M53: =IF(IF(L36>H36,H36,L36)<J36,L36,IF(L36>H36,H36,L36)) ->  | N53: =0.2*LFL455A*'A2L Calculator (above ground)'!D50 ->  | O53: =0.2*LFL455A*'A2L Calculator (above ground)'!D50 ->  | P53: =0.2*LFL455A*'A2L Calculator (above ground)'!D50 ->  | Q53: =0.2*LFL455A*'A2L Calculator (above ground)'!D50 ->  | R53: =IF(IF(K36>H36,H36,K36)<J36,K36,IF(K36>H36,H36,K36)) ->  | S53: =IF(IF(L36>H36,H36,L36)<J36,L36,IF(L36>H36,H36,L36)) ->  | T53: =0.2*LFL455A*'A2L Calculator (above ground)'!D50 ->  | U53: =0.2*LFL455A*'A2L Calculator (above ground)'!D50 ->  | V53: =0.2*LFL455A*'A2L Calculator (above ground)'!D50 ->  | W53: No Charge Restriction | AA53: =AA52 -> 84.045 | AB53: =AB52 -> 84.045 | AC53: =AC52 -> 84.045
A54: R152a
A55: Non Sealed
A56: R1234yf | B56: =IF(IF(0.2*LFL1234yf*'A2L Calculator (above ground)'!D50>I38,I38,0.2*LFL1234yf*'A2L Calculator (above ground)'!D50)<J38,J38,IF(0.2*LFL1234yf*'A2L Calculator (above ground)'!D50>I38,I38,0.2*LFL1234yf*'A2L Calculator (above ground)'!D50)) ->  | C56: =B56 ->  | D56: =B56 ->  | E56: =IF(IF(0.2*LFL1234yf*'A2L Calculator (above ground)'!D50>I38,I38,0.2*LFL1234yf*'A2L Calculator (above ground)'!D50)<J38,J38,IF(0.2*LFL1234yf*'A2L Calculator (above ground)'!D50>I38,I38,0.2*LFL1234yf*'A2L Calculator (above ground)'!D50)) ->  | F56: =IF(IF(K38>H38,H38,K38)<J38,J38,IF(K38>H38,H38,K38)) ->  | G56: =IF(IF(L38>H38,H38,L38)<J38,J38,IF(L38>H38,H38,L38)) ->  | H56: =IF(IF(0.2*LFL1234yf*'A2L Calculator (above ground)'!D50>I38,I38,0.2*LFL1234yf*'A2L Calculator (above ground)'!D50)<J38,J38,IF(0.2*LFL1234yf*'A2L Calculator (above ground)'!D50>I38,I38,0.2*LFL1234yf*'A2L Calculator (above ground)'!D50)) ->  | I56: =H56 ->  | J56: =H56 ->  | K56: =IF(IF(0.2*LFL1234yf*'A2L Calculator (above ground)'!D50<=25,0.2*LFL1234yf*'A2L Calculator (above ground)'!D50,25)<J38,J38,IF(0.2*LFL1234yf*'A2L Calculator (above ground)'!D50<=25,0.2*LFL1234yf*'A2L Calculator (above ground)'!D50,25)) ->  | L56: =IF(IF(K38>H38,H38,K38)<J38,J38,IF(K38>H38,H38,K38)) ->  | M56: =IF(IF(L38>H38,H38,L38)<J38,J38,IF(L38>H38,H38,L38)) ->  | N56: =IF(IF(0.2*LFL1234yf*'A2L Calculator (above ground)'!D50>I38,I38,0.2*LFL1234yf*'A2L Calculator (above ground)'!D50)<J38,J38,IF(0.2*LFL1234yf*'A2L Calculator (above ground)'!D50>I38,I38,0.2*LFL1234yf*'A2L Calculator (above ground)'!D50)) ->  | O56: =N56 ->  | P56: =N56 ->  | Q56: =IF(IF(0.2*LFL1234yf*'A2L Calculator (above ground)'!D50<=25,0.2*LFL1234yf*'A2L Calculator (above ground)'!D50,25)<J38,J38,IF(0.2*LFL1234yf*'A2L Calculator (above ground)'!D50<=25,0.2*LFL1234yf*'A2L Calculator (above ground)'!D50,25)) ->  | R56: =IF(IF(K38>H38,H38,K38)<J38,J38,IF(K38>H38,H38,K38)) ->  | S56: =IF(IF(L38>H38,H38,L38)<J38,J38,IF(L38>H38,H38,L38)) ->  | T56: =IF(IF(0.2*LFL1234yf*'A2L Calculator (above ground)'!D50<=50,0.2*LFL1234yf*'A2L Calculator (above ground)'!D50,50)<J38,J38,IF(0.2*LFL1234yf *'A2L Calculator (above ground)'!D50<=50,0.2*LFL1234yf*'A2L Calculator (above ground)'!D50,50)) ->  | U56: =T56 ->  | V56: =T56 ->  | W56: No Charge Restriction | X56: No Charge Restriction | Y56: No Charge Restriction | Z56: No Charge Restriction | AA56: =H38 -> 56.355 | AB56: =H38 -> 56.355 | AC56: =H38 -> 56.355
A57: Non Sealed | B57: =0.2*LFL1234yf*'A2L Calculator (above ground)'!D50 ->  | C57: =0.2*LFL1234yf*'A2L Calculator (above ground)'!D50 ->  | D57: =0.2*LFL1234yf*'A2L Calculator (above ground)'!D50 ->  | E57: =0.2*LFL1234yf*'A2L Calculator (above ground)'!D50 ->  | F57: =IF(IF(K38>H38,H38,K38)<J38,K38,IF(K38>H38,H38,K38)) ->  | G57: =IF(IF(L38>H38,H38,L38)<J38,L38,IF(L38>H38,H38,L38)) ->  | H57: =0.2*LFL1234yf*'A2L Calculator (above ground)'!D50 ->  | I57: =0.2*LFL1234yf*'A2L Calculator (above ground)'!D50 ->  | J57: =0.2*LFL1234yf*'A2L Calculator (above ground)'!D50 ->  | K57: =0.2*LFL1234yf*'A2L Calculator (above ground)'!D50 ->  | L57: =IF(IF(K38>H38,H38,K38)<J38,K38,IF(K38>H38,H38,K38)) ->  | M57: =IF(IF(L38>H38,H38,L38)<J38,L38,IF(L38>H38,H38,L38)) ->  | N57: =0.2*LFL1234yf*'A2L Calculator (above ground)'!D50 ->  | O57: =0.2*LFL1234yf*'A2L Calculator (above ground)'!D50 ->  | P57: =0.2*LFL1234yf*'A2L Calculator (above ground)'!D50 ->  | Q57: =0.2*LFL1234yf*'A2L Calculator (above ground)'!D50 ->  | R57: =IF(IF(K38>H38,H38,K38)<J38,K38,IF(K38>H38,H38,K38)) ->  | S57: =IF(IF(L38>H38,H38,L38)<J38,L38,IF(L38>H38,H38,L38)) ->  | T57: =0.2*LFL1234yf*'A2L Calculator (above ground)'!D50 ->  | U57: =0.2*LFL1234yf*'A2L Calculator (above ground)'!D50 ->  | V57: =0.2*LFL1234yf*'A2L Calculator (above ground)'!D50 ->  | W57: No Charge Restriction | AA57: =AA56 -> 56.355 | AB57: =AB56 -> 56.355 | AC57: =AC56 -> 56.355
A58: R1234ze | B58: =IF(IF(0.2*LFL1234ze*'A2L Calculator (above ground)'!D50>I39,I39,0.2*LFL1234ze*'A2L Calculator (above ground)'!D50)<J39,J39,IF(0.2*LFL1234ze*'A2L Calculator (above ground)'!D50>I39,I39,0.2*LFL1234ze*'A2L Calculator (above ground)'!D50)) ->  | C58: =B58 ->  | D58: =B58 ->  | E58: =IF(IF(0.2*LFL1234ze*'A2L Calculator (above ground)'!D50>I39,I39,0.2*LFL1234ze*'A2L Calculator (above ground)'!D50)<J39,J39,IF(0.2*LFL1234ze*'A2L Calculator (above ground)'!D50>I39,I39,0.2*LFL1234ze*'A2L Calculator (above ground)'!D50)) ->  | F58: =IF(IF(K39>H39,H39,K39)<J39,J39,IF(K39>H39,H39,K39)) ->  | G58: =IF(IF(L39>H39,H39,L39)<J39,J39,IF(L39>H39,H39,L39)) ->  | H58: =IF(IF(0.2*LFL1234ze*'A2L Calculator (above ground)'!D50>I39,I39,0.2*LFL1234ze*'A2L Calculator (above ground)'!D50)<J39,J39,IF(0.2*LFL1234ze*'A2L Calculator (above ground)'!D50>I39,I39,0.2*LFL1234ze*'A2L Calculator (above ground)'!D50)) ->  | I58: =H58 ->  | J58: =H58 ->  | K58: =IF(IF(0.2*LFL1234ze*'A2L Calculator (above ground)'!D50<=25,0.2*LFL1234ze*'A2L Calculator (above ground)'!D50,25)<J39,J39,IF(0.2*LFL1234ze*'A2L Calculator (above ground)'!D50<=25,0.2*LFL1234ze*'A2L Calculator (above ground)'!D50,25)) ->  | L58: =IF(IF(K39>H39,H39,K39)<J39,J39,IF(K39>H39,H39,K39)) ->  | M58: =IF(IF(L39>H39,H39,L39)<J39,J39,IF(L39>H39,H39,L39)) ->  | N58: =IF(IF(0.2*LFL1234ze*'A2L Calculator (above ground)'!D50>I39,I39,0.2*LFL1234ze*'A2L Calculator (above ground)'!D50)<J39,J39,IF(0.2*LFL1234ze*'A2L Calculator (above ground)'!D50>I39,I39,0.2*LFL1234ze*'A2L Calculator (above ground)'!D50)) ->  | O58: =N58 ->  | P58: =N58 ->  | Q58: =IF(IF(0.2*LFL1234ze*'A2L Calculator (above ground)'!D50<=25,0.2*LFL1234ze*'A2L Calculator (above ground)'!D50,25)<J39,J39,IF(0.2*LFL1234ze*'A2L Calculator (above ground)'!D50<=25,0.2*LFL1234ze*'A2L Calculator (above ground)'!D50,25)) ->  | R58: =IF(IF(K39>H39,H39,K39)<J39,J39,IF(K39>H39,H39,K39)) ->  | S58: =IF(IF(L39>H39,H39,L39)<J39,J39,IF(L39>H39,H39,L39)) ->  | T58: =IF(IF(0.2*LFL1234ze*'A2L Calculator (above ground)'!D50<=50,0.2*LFL1234ze*'A2L Calculator (above ground)'!D50,50)<J39,J39,IF(0.2*LFL1234ze *'A2L Calculator (above ground)'!D50<=50,0.2*LFL1234ze*'A2L Calculator (above ground)'!D50,50)) ->  | U58: =T58 ->  | V58: =T58 ->  | W58: No Charge Restriction | X58: No Charge Restriction | Y58: No Charge Restriction | Z58: No Charge Restriction | AA58: =H39 -> 59.085 | AB58: =H39 -> 59.085 | AC58: =H39 -> 59.085
A59: Non Sealed | B59: =0.2*LFL1234ze*'A2L Calculator (above ground)'!D50 ->  | C59: =0.2*LFL1234ze*'A2L Calculator (above ground)'!D50 ->  | D59: =0.2*LFL1234ze*'A2L Calculator (above ground)'!D50 ->  | E59: =0.2*LFL1234ze*'A2L Calculator (above ground)'!D50 ->  | F59: =IF(IF(K39>H39,H39,K39)<J39,K39,IF(K39>H39,H39,K39)) ->  | G59: =IF(IF(L39>H39,H39,L39)<J39,L39,IF(L39>H39,H39,L39)) ->  | H59: =0.2*LFL1234ze*'A2L Calculator (above ground)'!D50 ->  | I59: =0.2*LFL1234ze*'A2L Calculator (above ground)'!D50 ->  | J59: =0.2*LFL1234ze*'A2L Calculator (above ground)'!D50 ->  | K59: =0.2*LFL1234ze*'A2L Calculator (above ground)'!D50 ->  | L59: =IF(IF(K39>H39,H39,K39)<J39,K39,IF(K39>H39,H39,K39)) ->  | M59: =IF(IF(L39>H39,H39,L39)<J39,L39,IF(L39>H39,H39,L39)) ->  | N59: =0.2*LFL1234ze*'A2L Calculator (above ground)'!D50 ->  | O59: =0.2*LFL1234ze*'A2L Calculator (above ground)'!D50 ->  | P59: =0.2*LFL1234ze*'A2L Calculator (above ground)'!D50 ->  | Q59: =0.2*LFL1234ze*'A2L Calculator (above ground)'!D50 ->  | R59: =IF(IF(K39>H39,H39,K39)<J39,K39,IF(K39>H39,H39,K39)) ->  | S59: =IF(IF(L39>H39,H39,L39)<J39,L39,IF(L39>H39,H39,L39)) ->  | T59: =0.2*LFL1234ze*'A2L Calculator (above ground)'!D50 ->  | U59: =0.2*LFL1234ze*'A2L Calculator (above ground)'!D50 ->  | V59: =0.2*LFL1234ze*'A2L Calculator (above ground)'!D50 ->  | W59: No Charge Restriction | AA59: =AA58 -> 59.085 | AB59: =AB58 -> 59.085 | AC59: =AC58 -> 59.085
B60: =IF(IF(0.2*LFL*'A2L Calculator (above ground)'!D50>I40,I40,0.2*LFL*'A2L Calculator (above ground)'!D50)<J40,J40,IF(0.2*LFL*'A2L Calculator (above ground)'!D50>I40,I40,0.2*LFL*'A2L Calculator (above ground)'!D50)) ->  | C60: =B60 ->  | D60: =B60 ->  | E60: =IF($P$70="OAa21",E42,IF($P$70="OAa22",E44,IF($P$70="OAa23",E46,IF($P$70="OAa24",E48,IF($P$70="OAa25",E50,IF($P$70="OAa26",E52,IF($P$70="OAa27",E54,IF($P$70="OAa28",E56,IF($P$70="OAa29",E58))))))))) -> FALSE | F60: FALSE | G60: FALSE | H60: =IF($P$70="OAb11",H42,IF($P$70="OAb12",H44,IF($P$70="OAb13",H46,IF($P$70="OAb14",H48,IF($P$70="OAb15",H50,IF($P$70="OAb16",H52,IF($P$70="OAb17",H54,IF($P$70="OAb18",H56,IF($P$70="OAb19",H58))))))))) -> FALSE | I60: FALSE | J60: FALSE | K60: =IF($P$70="OAb21",K42,IF($P$70="OAb22",K44,IF($P$70="OAb23",K46,IF($P$70="OAb24",K48,IF($P$70="OAb25",K50,IF($P$70="OAb26",K52,IF($P$70="OAb27",K54,IF($P$70="OAb28",K56,IF($P$70="OAb29",K58))))))))) -> FALSE | L60: FALSE | M60: FALSE | N60: =IF($P$70="OAc11",N42,IF($P$70="OAc12",N44,IF($P$70="OAc13",N46,IF($P$70="OAc14",N48,IF($P$70="OAc15",N50,IF($P$70="OAc16",N52,IF($P$70="OAc17",N54,IF($P$70="OAc18",N56,IF($P$70="OAc19",N58))))))))) -> FALSE | O60: FALSE | P60: FALSE | Q60: =IF($P$70="OAc21",Q42,IF($P$70="OAc22",Q44,IF($P$70="OAc23",Q46,IF($P$70="OAc24",Q48,IF($P$70="OAc25",Q50,IF($P$70="OAc26",Q52,IF($P$70="OAc27",Q54,IF($P$70="OAc28",Q56,IF($P$70="OAc29",Q58))))))))) -> FALSE | R60: FALSE | S60: FALSE | T60: =IF($P$70="1Persc11",T42,IF($P$70="1Persc12",T44,IF($P$70="1Persc13",T46,IF($P$70="1Persc14",T48,IF($P$70="1Persc15",T50,IF($P$70="1Persc16",T52,IF($P$70="1Persc17",T54,IF($P$70="1Persc18",T56,IF($P$70="1Persc19",T58))))))))) -> FALSE | U60: FALSE | V60: FALSE | W60: =IF($P$70="1Persc21",W42,IF($P$70="1Persc22",W44,IF($P$70="1Persc23",W46,IF($P$70="1Persc24",W48,IF($P$70="1Persc25",W50,IF($P$70="1Persc26",W52,IF($P$70="1Persc27",W54,IF($P$70="1Persc28",W56,IF($P$70="1Persc29",W58))))))))) -> FALSE | X60: =IF('A2L Calculator (above ground)'!$AB$7="3",X42,IF('A2L Calculator (above ground)'!$AB$7="3",X44,IF('A2L Calculator (above ground)'!$AB$7="3",X46,IF('A2L Calculator (above ground)'!$AB$7="3",X48,IF('A2L Calculator (above ground)'!$AB$7="3",X50,IF('A2L Calculator (above ground)'!$AB$7="3",X52,IF('A2L Calculator (above ground)'!$AB$7="3",X54,IF('A2L Calculator (above ground)'!$AB$7="3",X56,IF('A2L Calculator (above ground)'!$AB$7="3""",X58))))))))) -> FALSE | Y60: =IF('A2L Calculator (above ground)'!$AB$7="3",Y42,IF('A2L Calculator (above ground)'!$AB$7="3",Y44,IF('A2L Calculator (above ground)'!$AB$7="3",Y46,IF('A2L Calculator (above ground)'!$AB$7="3",Y48,IF('A2L Calculator (above ground)'!$AB$7="3",Y50,IF('A2L Calculator (above ground)'!$AB$7="3",Y52,IF('A2L Calculator (above ground)'!$AB$7="3",Y54,IF('A2L Calculator (above ground)'!$AB$7="3",Y56,IF('A2L Calculator (above ground)'!$AB$7="3""",Y58))))))))) -> FALSE | Z60: =IF('A2L Calculator (above ground)'!$AB$7="3",Z42,IF('A2L Calculator (above ground)'!$AB$7="3",Z44,IF('A2L Calculator (above ground)'!$AB$7="3",Z46,IF('A2L Calculator (above ground)'!$AB$7="3",Z48,IF('A2L Calculator (above ground)'!$AB$7="3",Z50,IF('A2L Calculator (above ground)'!$AB$7="3",Z52,IF('A2L Calculator (above ground)'!$AB$7="3",Z54,IF('A2L Calculator (above ground)'!$AB$7="3",Z56,IF('A2L Calculator (above ground)'!$AB$7="3""",Z58))))))))) -> FALSE | AA60: =IF('A2L Calculator (above ground)'!$AB$7="4",AA42,IF('A2L Calculator (above ground)'!$AB$7="4",AA44,IF('A2L Calculator (above ground)'!$AB$7="4",AA46,IF('A2L Calculator (above ground)'!$AB$7="4",AA48,IF('A2L Calculator (above ground)'!$AB$7="4",AA50,IF('A2L Calculator (above ground)'!$AB$7="4",AA52,IF('A2L Calculator (above ground)'!$AB$7="4",AA54,IF('A2L Calculator (above ground)'!$AB$7="4",AA56,IF('A2L Calculator (above ground)'!$AB$7="4""",AA58))))))))) -> FALSE | AB60: =IF('A2L Calculator (above ground)'!$AB$7="4",AB42,IF('A2L Calculator (above ground)'!$AB$7="4",AB44,IF('A2L Calculator (above ground)'!$AB$7="4",AB46,IF('A2L Calculator (above ground)'!$AB$7="4",AB48,IF('A2L Calculator (above ground)'!$AB$7="4",AB50,IF('A2L Calculator (above ground)'!$AB$7="4",AB52,IF('A2L Calculator (above ground)'!$AB$7="4",AB54,IF('A2L Calculator (above ground)'!$AB$7="4",AB56,IF('A2L Calculator (above ground)'!$AB$7="4""",AB58))))))))) -> FALSE | AC60: =IF('A2L Calculator (above ground)'!$AB$7="4",AC42,IF('A2L Calculator (above ground)'!$AB$7="4",AC44,IF('A2L Calculator (above ground)'!$AB$7="4",AC46,IF('A2L Calculator (above ground)'!$AB$7="4",AC48,IF('A2L Calculator (above ground)'!$AB$7="4",AC50,IF('A2L Calculator (above ground)'!$AB$7="4",AC52,IF('A2L Calculator (above ground)'!$AB$7="4",AC54,IF('A2L Calculator (above ground)'!$AB$7="4",AC56,IF('A2L Calculator (above ground)'!$AB$7="4""",AC58))))))))) -> FALSE
B61: =0.2*LFL*'A2L Calculator (above ground)'!D50 ->  | C61: =B61 ->  | D61: =B61 ->  | E61: FALSE | F61: FALSE | G61: FALSE | H61: FALSE | I61: FALSE | J61: FALSE | K61: FALSE | L61: FALSE | M61: FALSE | N61: FALSE | O61: FALSE | P61: FALSE | Q61: FALSE | R61: FALSE | S61: FALSE | T61: FALSE | U61: FALSE | V61: FALSE | W61: =IF($P$70="1Persc21",W43,IF($P$70="1Persc22",W45,IF($P$70="1Persc23",W47,IF($P$70="1Persc24",W49,IF($P$70="1Persc25",W51,IF($P$70="1Persc26",W53,IF($P$70="1Persc27",W55,IF($P$70="1Persc28",W57,IF($P$70="1Persc29",W59))))))))) -> FALSE | X61: =IF('A2L Calculator (above ground)'!$AB$7="3",X43,IF('A2L Calculator (above ground)'!$AB$7="3",X45,IF('A2L Calculator (above ground)'!$AB$7="3",X47,IF('A2L Calculator (above ground)'!$AB$7="3",X49,IF('A2L Calculator (above ground)'!$AB$7="3",X51,IF('A2L Calculator (above ground)'!$AB$7="3",X53,IF('A2L Calculator (above ground)'!$AB$7="3",X55,IF('A2L Calculator (above ground)'!$AB$7="3",X57,IF('A2L Calculator (above ground)'!$AB$7="3""",X59))))))))) -> FALSE | Y61: =IF('A2L Calculator (above ground)'!$AB$7="3",Y43,IF('A2L Calculator (above ground)'!$AB$7="3",Y45,IF('A2L Calculator (above ground)'!$AB$7="3",Y47,IF('A2L Calculator (above ground)'!$AB$7="3",Y49,IF('A2L Calculator (above ground)'!$AB$7="3",Y51,IF('A2L Calculator (above ground)'!$AB$7="3",Y53,IF('A2L Calculator (above ground)'!$AB$7="3",Y55,IF('A2L Calculator (above ground)'!$AB$7="3",Y57,IF('A2L Calculator (above ground)'!$AB$7="3""",Y59))))))))) -> FALSE | Z61: =IF('A2L Calculator (above ground)'!$AB$7="3",Z43,IF('A2L Calculator (above ground)'!$AB$7="3",Z45,IF('A2L Calculator (above ground)'!$AB$7="3",Z47,IF('A2L Calculator (above ground)'!$AB$7="3",Z49,IF('A2L Calculator (above ground)'!$AB$7="3",Z51,IF('A2L Calculator (above ground)'!$AB$7="3",Z53,IF('A2L Calculator (above ground)'!$AB$7="3",Z55,IF('A2L Calculator (above ground)'!$AB$7="3",Z57,IF('A2L Calculator (above ground)'!$AB$7="3""",Z59))))))))) -> FALSE | AA61: =IF('A2L Calculator (above ground)'!$AB$7="4",AA43,IF('A2L Calculator (above ground)'!$AB$7="4",AA45,IF('A2L Calculator (above ground)'!$AB$7="4",AA47,IF('A2L Calculator (above ground)'!$AB$7="4",AA49,IF('A2L Calculator (above ground)'!$AB$7="4",AA51,IF('A2L Calculator (above ground)'!$AB$7="4",AA53,IF('A2L Calculator (above ground)'!$AB$7="4",AA55,IF('A2L Calculator (above ground)'!$AB$7="4",AA57,IF('A2L Calculator (above ground)'!$AB$7="4""",AA59))))))))) -> FALSE | AB61: =IF('A2L Calculator (above ground)'!$AB$7="4",AB43,IF('A2L Calculator (above ground)'!$AB$7="4",AB45,IF('A2L Calculator (above ground)'!$AB$7="4",AB47,IF('A2L Calculator (above ground)'!$AB$7="4",AB49,IF('A2L Calculator (above ground)'!$AB$7="4",AB51,IF('A2L Calculator (above ground)'!$AB$7="4",AB53,IF('A2L Calculator (above ground)'!$AB$7="4",AB55,IF('A2L Calculator (above ground)'!$AB$7="4",AB57,IF('A2L Calculator (above ground)'!$AB$7="4""",AB59))))))))) -> FALSE | AC61: =IF('A2L Calculator (above ground)'!$AB$7="4",AC43,IF('A2L Calculator (above ground)'!$AB$7="4",AC45,IF('A2L Calculator (above ground)'!$AB$7="4",AC47,IF('A2L Calculator (above ground)'!$AB$7="4",AC49,IF('A2L Calculator (above ground)'!$AB$7="4",AC51,IF('A2L Calculator (above ground)'!$AB$7="4",AC53,IF('A2L Calculator (above ground)'!$AB$7="4",AC55,IF('A2L Calculator (above ground)'!$AB$7="4",AC57,IF('A2L Calculator (above ground)'!$AB$7="4""",AC59))))))))) -> FALSE
A62: Result | B62: =IF(IF(0.2*LFL*'A2L Calculator (above ground)'!D50>I40,I40,0.2*LFL*'A2L Calculator (above ground)'!D50)<J40,J40,IF(0.2*LFL*'A2L Calculator (above ground)'!D50>I40,I40,0.2*LFL*'A2L Calculator (above ground)'!D50)) ->  | C62: =C60 ->  | D62: =D60 ->  | F62: =IF($A$65="OAa2",F60) -> FALSE | G62: =IF($A$65="OAa2",G60) -> FALSE | I62: =IF($A$65="OAb1",I60,"N/A") -> N/A | J62: =IF($A$65="OAb1",J60,"N/A") -> N/A | L62: =IF($A$65="OAb2",L60,"N/A") -> N/A | M62: =IF($A$65="OAb2",M60,"N/A") -> N/A | O62: =IF($A$65="OAc1",O60,"N/A") -> N/A | P62: =IF($A$65="OAc1",P60,"N/A") -> N/A | R62: =IF($A$65="OAc2",R60,"N/A") -> N/A | S62: =IF($A$65="OAc2",S60,"N/A") -> N/A | U62: =IF($A$65="1Persc1",U60,"N/A") -> N/A | V62: =IF($A$65="1Persc1",V60,"N/A") -> N/A | W62: =IF($A$65="1Persc2",W60,"N/A") -> N/A | X62: N/A | Y62: N/A | Z62: N/A | AA62: N/A | AB62: N/A | AC62: N/A
A63: Non Sealed | B63: =B61 ->  | C63: =IF(IF(0.2*LFL*'A2L Calculator (above ground)'!D50<I40,I40,0.2*LFL*'A2L Calculator (above ground)'!D50)<J40,J40,IF(0.2*LFL*'A2L Calculator (above ground)'!D50>I40,I40,0.2*LFL*'A2L Calculator (above ground)'!D50)) ->  | D63: =IF(IF(0.2*LFL*'A2L Calculator (above ground)'!D50<I40,I40,0.2*LFL*'A2L Calculator (above ground)'!D50)<J40,J40,IF(0.2*LFL*'A2L Calculator (above ground)'!D50>I40,I40,0.2*LFL*'A2L Calculator (above ground)'!D50)) ->  | F63: =IF($A$65="OAa2",F61) -> FALSE | G63: =IF($A$65="OAa2",G61) -> FALSE | I63: =IF(IF(0.2*LFL*'A2L Calculator (above ground)'!D50<I40,I40,0.2*LFL*'A2L Calculator (above ground)'!D50)<J40,J40,IF(0.2*LFL*'A2L Calculator (above ground)'!D50>I40,I40,0.2*LFL*'A2L Calculator (above ground)'!D50)) ->  | J63: =IF(IF(0.2*LFL*'A2L Calculator (above ground)'!D50<I40,I40,0.2*LFL*'A2L Calculator (above ground)'!D50)<J40,J40,IF(0.2*LFL*'A2L Calculator (above ground)'!D50>I40,I40,0.2*LFL*'A2L Calculator (above ground)'!D50)) ->  | L63: =IF($A$65="OAb2",L61,"N/A") -> N/A | M63: =IF($A$65="OAb2",M61,"N/A") -> N/A | O63: =IF(IF(0.2*LFL*'A2L Calculator (above ground)'!D50<I40,I40,0.2*LFL*'A2L Calculator (above ground)'!D50)<J40,J40,IF(0.2*LFL*'A2L Calculator (above ground)'!D50>I40,I40,0.2*LFL*'A2L Calculator (above ground)'!D50)) ->  | P63: =IF(IF(0.2*LFL*'A2L Calculator (above ground)'!D50<I40,I40,0.2*LFL*'A2L Calculator (above ground)'!D50)<J40,J40,IF(0.2*LFL*'A2L Calculator (above ground)'!D50>I40,I40,0.2*LFL*'A2L Calculator (above ground)'!D50)) ->  | R63: =IF($A$65="OAc2",R61,"N/A") -> N/A | S63: =IF($A$65="OAc2",S61,"N/A") -> N/A | U63: =IF($A$65="1Persc1",U61,"N/A") -> N/A | V63: =IF($A$65="1Persc1",V61,"N/A") -> N/A | W63: =IF($A$65="1Persc2",W61,"N/A") -> N/A | X63: N/A | Y63: N/A | Z63: N/A | AA63: N/A | AB63: N/A | AC63: N/A
A65: ='A2L Calculator (above ground)'!AB24&'A2L Calculator (above ground)'!AB14&'A2L Calculator (above ground)'!AB7 -> HCa1 | R65: =IF($A$65="OAc2",R61,"N/A") -> N/A
A66: H | B66: C
B69: Refrigerant | C69: QLMV | D69: QLAV | E69: RV/Refri.Carge | G69: Max. Carge QLMV/QLAV | H69: 130*LFL*1,5 | I69: 26*LFL*1,5 | J69: 4*LFL*1,5 | K69: QLMV MAX | L69: QLAV MAX | M69: QLAV result | P69: Aktuelle Anwendung im Rechner
B70: R454c | C70: 0.061 | D70: 0.14 | E70: ='A2L Calculator (above ground)'!D52/Berechnungen!B41 -> 0.008 | F70: =IF(E70<=C70,C70,D70) -> 0.061 | G70: =Berechnungen!B41*F70 -> 15.25 | H70: =130*LFL454C*1.5 -> 57.135 | I70: =26*LFL454C*1.5 -> 11.427 | J70: =4*LFL454C*1.5 -> 1.758 | K70: =Berechnungen!B41*C70 -> 15.25 | L70: =Berechnungen!B41*D70 -> 35 | M70: =IF(L70>H70,H70,L70) -> 35 | P70: ='A2L Calculator (above ground)'!AB24&'A2L Calculator (above ground)'!AB14&'A2L Calculator (above ground)'!AB7&'A2L Calculator (above ground)'!AB31 -> HCa11
B71: R454A | C71: 0.058 | D71: 0.13 | E71: ='A2L Calculator (above ground)'!D52/Berechnungen!B41 -> 0.008 | F71: =IF(E71<=C71,C71,D71) -> 0.058 | G71: =Berechnungen!B41*F71 -> 14.5 | H71: =130*LFL454A*1.5 -> 54.21 | I71: =26*LFL454A*1.5 -> 10.842 | J71: =4*LFL454A*1.5 -> 1.668 | K71: =Berechnungen!B41*C71 -> 14.5 | L71: =Berechnungen!B41*D71 -> 32.5 | M71: 32.5
B72: R454B | C72: 0.064 | D72: 0.15 | E72: ='A2L Calculator (above ground)'!D52/Berechnungen!B41 -> 0.008 | F72: 0.064 | G72: =Berechnungen!B41*F72 -> 16 | H72: =130*LFL454B*1.5 -> 59.085 | I72: =26*LFL454B*1.5 -> 11.817 | J72: =4*LFL454B*1.5 -> 1.818 | K72: =Berechnungen!B41*C72 -> 16 | L72: =Berechnungen!B41*D72 -> 37.5 | M72: 37.5
B73: R452B | C73: 0.065 | D73: 0.15 | E73: ='A2L Calculator (above ground)'!D52/Berechnungen!B41 -> 0.008 | F73: 0.065 | G73: =Berechnungen!B41*F73 -> 16.25 | H73: =130*LFL452B*1.5 -> 60.45 | I73: =26*LFL452B*1.5 -> 12.09 | J73: =4*LFL452B*1.5 -> 1.86 | K73: =Berechnungen!B41*C73 -> 16.25 | L73: =Berechnungen!B41*D73 -> 37.5 | M73: 37.5
B74: R32 | C74: 0.063 | D74: 0.15 | E74: ='A2L Calculator (above ground)'!D52/Berechnungen!B41 -> 0.008 | F74: 0.063 | G74: =Berechnungen!B41*F74 -> 15.75 | H74: =130*LFL32a*1.5 -> 59.865 | I74: =26*LFL32a*1.5 -> 11.973 | J74: =4*LFL32a*1.5 -> 1.842 | K74: =Berechnungen!B41*C74 -> 15.75 | L74: =Berechnungen!B41*D74 -> 37.5 | M74: 37.5
B75: R455A | C75: 0.092 | D75: 0.21 | E75: ='A2L Calculator (above ground)'!D52/Berechnungen!B41 -> 0.008 | F75: 0.092 | G75: =Berechnungen!B41*F75 -> 23 | H75: =130*LFL455A*1.5 -> 84.045 | I75: =26*LFL455A*1.5 -> 16.809 | J75: =4*LFL455A*1.5 -> 2.586 | K75: =Berechnungen!B41*C75 -> 23 | L75: =Berechnungen!B41*D75 -> 52.5 | M75: 52.5
B76: R152a | F76: 0
B77: R1234yf | C77: 0.06 | D77: 0.14 | E77: ='A2L Calculator (above ground)'!D52/Berechnungen!B41 -> 0.008 | F77: 0.06 | G77: =Berechnungen!B41*F77 -> 15 | H77: =130*LFL1234yf*1.5 -> 56.355 | I77: =26*LFL1234yf*1.5 -> 11.271 | J77: =4*LFL1234yf*1.5 -> 1.734 | K77: =Berechnungen!B41*C77 -> 15 | L77: =Berechnungen!B41*D77 -> 35 | M77: =IF(L77>H77,H77,L77) -> 35
B78: R1234ze | C78: 0.063 | D78: 0.15 | E78: ='A2L Calculator (above ground)'!D52/Berechnungen!B41 -> 0.008 | F78: 0.063 | G78: =Berechnungen!B41*F78 -> 15.75 | H78: =130*LFL1234ze*1.5 -> 59.085 | I78: =26*LFL1234ze*1.5 -> 11.817 | J78: =4*LFL1234ze*1.5 -> 1.818 | K78: =Berechnungen!B41*C78 -> 15.75 | L78: =Berechnungen!B41*D78 -> 37.5 | M78: =IF(L78>H78,H78,L78) -> 37.5
B80: HCaIC2 | C80: HCaIQLMV | D80: HCaIQLAV | E80: HCaIIC2 | F80: HCaIIQLMV | G80: HCaIIQLAV | H80: HCbIC2 | I80: HCbIQLMV | J80: HCbIQLAV | K80: HCbIIC2 | L80: HCbIIQLMV | M80: HCbIIQLAV | N80: HCcIC2 | O80: HCcIQLMV | P80: HCcIQLAV | Q80: HCcIIC2 | R80: HCcIIQLMV | S80: HCcIIQLAV | T80: HCaIII | U80: HCbIII | V80: HCcIII | W80: HCaIV | X80: HCbIV | Y80: HCcIV
A81: R454c | B81: =IF(IF(2.5*LFL454C^(5/4)*HF*A_2^(1/2)>'QLAV & QLMV'!I70,'QLAV & QLMV'!I70,2.5*LFL454C^(5/4)*HF*A_2^(1/2))<'QLAV & QLMV'!J70,'QLAV & QLMV'!J70,IF(2.5*LFL454C^(5/4)*HF*A_2^(1/2)>'QLAV & QLMV'!I70,'QLAV & QLMV'!I70,2.5*LFL454C^(5/4)*HF*A_2^(1/2))) -> 11.427 | C81: =B81 -> 11.427 | D81: =B81 -> 11.427 | E81: =IF(2.5*LFL454C^(5/4)*HF*A_2^(1/2)>'QLAV & QLMV'!I70,'QLAV & QLMV'!I70,2.5*LFL454C^(5/4)*HF*A_2^(1/2)) -> 11.427 | F81: =IF(IF(K70>H70,H70,K70)<J70,J70,IF(K70>H70,H70,K70)) -> 15.25 | G81: =IF(IF(L70>H70,H70,L70)<J70,J70,IF(L70>H70,H70,L70)) -> 35 | H81: =B81 -> 11.427 | I81: 11.427 | J81: 11.427 | K81: 11.427 | L81: 15.25 | M81: 35 | N81: =B81 -> 11.427 | O81: 11.427 | P81: 11.427 | Q81: 11.427 | R81: 15.25 | S81: 35 | T81: No Charge Restriction | U81: No Charge Restriction | V81: No Charge Restriction | W81: =H70 -> 57.135 | X81: =H70 -> 57.135 | Y81: =H70 -> 57.135
A82: R454A | B82: =IF(IF(2.5*LFL454A^(5/4)*HF*A_2^(1/2)>'QLAV & QLMV'!I71,'QLAV & QLMV'!I71,2.5*LFL454A^(5/4)*HF*A_2^(1/2))<'QLAV & QLMV'!J71,'QLAV & QLMV'!J71,IF(2.5*LFL454A^(5/4)*HF*A_2^(1/2)>'QLAV & QLMV'!I71,'QLAV & QLMV'!I71,2.5*LFL454A^(5/4)*HF*A_2^(1/2))) -> 10.842 | C82: 10.842 | D82: 10.842 | E82: =IF(2.5*LFL454A^(5/4)*HF*A_2^(1/2)>'QLAV & QLMV'!I71,'QLAV & QLMV'!I71,2.5*LFL454A^(5/4)*HF*A_2^(1/2)) -> 10.842 | F82: 14.5 | G82: 32.5 | H82: 10.842 | I82: 10.842 | J82: 10.842 | K82: 10.842 | L82: 14.5 | M82: 32.5 | N82: 10.842 | O82: 10.842 | P82: 10.842 | Q82: 10.842 | R82: 14.5 | S82: 32.5 | T82: No Charge Restriction | U82: No Charge Restriction | V82: No Charge Restriction | W82: =H71 -> 54.21 | X82: =H71 -> 54.21 | Y82: =H71 -> 54.21
A83: R454B | B83: =IF(IF(2.5*LFL454B^(5/4)*HF*A_2^(1/2)>'QLAV & QLMV'!I72,'QLAV & QLMV'!I72,2.5*LFL454B^(5/4)*HF*A_2^(1/2))<'QLAV & QLMV'!J72,'QLAV & QLMV'!J72,IF(2.5*LFL454B^(5/4)*HF*A_2^(1/2)>'QLAV & QLMV'!I72,'QLAV & QLMV'!I72,2.5*LFL454B^(5/4)*HF*A_2^(1/2))) -> 11.817 | C83: 11.817 | D83: 11.817 | E83: =IF(2.5*LFL454B^(5/4)*HF*A_2^(1/2)>'QLAV & QLMV'!I72,'QLAV & QLMV'!I72,2.5*LFL454B^(5/4)*HF*A_2^(1/2)) -> 11.817 | F83: 16 | G83: 37.5 | H83: 11.817 | I83: 11.817 | J83: 11.817 | K83: 11.817 | L83: 16 | M83: 37.5 | N83: 11.817 | O83: 11.817 | P83: 11.817 | Q83: 11.817 | R83: 16 | S83: 37.5 | T83: No Charge Restriction | U83: No Charge Restriction | V83: No Charge Restriction | W83: =H72 -> 59.085 | X83: =H72 -> 59.085 | Y83: =H72 -> 59.085
A84: R452B | B84: =IF(IF(2.5*LFL452B^(5/4)*HF*A_2^(1/2)>'QLAV & QLMV'!I73,'QLAV & QLMV'!I73,2.5*LFL452B^(5/4)*HF*A_2^(1/2))<'QLAV & QLMV'!J73,'QLAV & QLMV'!J73,IF(2.5*LFL452B^(5/4)*HF*A_2^(1/2)>'QLAV & QLMV'!I73,'QLAV & QLMV'!I73,2.5*LFL452B^(5/4)*HF*A_2^(1/2))) -> 12.09 | C84: 12.09 | D84: 12.09 | E84: =IF(2.5*LFL452B^(5/4)*HF*A_2^(1/2)>'QLAV & QLMV'!I73,'QLAV & QLMV'!I73,2.5*LFL452B^(5/4)*HF*A_2^(1/2)) -> 12.09 | F84: 16.25 | G84: 37.5 | H84: 12.09 | I84: 12.09 | J84: 12.09 | K84: 12.09 | L84: 16.25 | M84: 37.5 | N84: 12.09 | O84: 12.09 | P84: 12.09 | Q84: 12.09 | R84: 16.25 | S84: 37.5 | T84: No Charge Restriction | U84: No Charge Restriction | V84: No Charge Restriction | W84: 60.45 | X84: 60.45 | Y84: 60.45
A85: R32 | B85: =IF(IF(2.5*LFL32a^(5/4)*HF*A_2^(1/2)>'QLAV & QLMV'!I74,'QLAV & QLMV'!I74,2.5*LFL32a^(5/4)*HF*A_2^(1/2))<'QLAV & QLMV'!J74,'QLAV & QLMV'!J74,IF(2.5*LFL32a^(5/4)*HF*A_2^(1/2)>'QLAV & QLMV'!I74,'QLAV & QLMV'!I74,2.5*LFL32a^(5/4)*HF*A_2^(1/2))) -> 11.973 | C85: 11.973 | D85: 11.973 | E85: =IF(2.5*LFL32a^(5/4)*HF*A_2^(1/2)>'QLAV & QLMV'!I74,'QLAV & QLMV'!I74,2.5*LFL32a^(5/4)*HF*A_2^(1/2)) -> 11.973 | F85: 15.75 | G85: 37.5 | H85: 11.973 | I85: 11.973 | J85: 11.973 | K85: 11.973 | L85: 15.75 | M85: 37.5 | N85: 11.973 | O85: 11.973 | P85: 11.973 | Q85: 11.973 | R85: 15.75 | S85: 37.5 | T85: No Charge Restriction | U85: No Charge Restriction | V85: No Charge Restriction | W85: 59.865 | X85: 59.865 | Y85: 59.865
A86: R455A | B86: =IF(IF(2.5*LFL455A^(5/4)*HF*A_2^(1/2)>'QLAV & QLMV'!I75,'QLAV & QLMV'!I75,2.5*LFL455A^(5/4)*HF*A_2^(1/2))<'QLAV & QLMV'!J75,'QLAV & QLMV'!J75,IF(2.5*LFL455A^(5/4)*HF*A_2^(1/2)>'QLAV & QLMV'!I75,'QLAV & QLMV'!I75,2.5*LFL455A^(5/4)*HF*A_2^(1/2))) -> 16.809 | C86: 16.809 | D86: 16.809 | E86: =IF(2.5*LFL455A^(5/4)*HF*A_2^(1/2)>'QLAV & QLMV'!I75,'QLAV & QLMV'!I75,2.5*LFL455A^(5/4)*HF*A_2^(1/2)) -> 16.809 | F86: 23 | G86: 52.5 | H86: 16.809 | I86: 16.809 | J86: 16.809 | K86: 16.809 | L86: 23 | M86: 52.5 | N86: 16.809 | O86: 16.809 | P86: 16.809 | Q86: 16.809 | R86: 23 | S86: 52.5 | T86: No Charge Restriction | U86: No Charge Restriction | V86: No Charge Restriction | W86: 84.045 | X86: 84.045 | Y86: 84.045
A87: R152a
A88: R1234yf | B88: =IF(IF(2.5*LFL1234yf^(5/4)*HF*A_2^(1/2)>'QLAV & QLMV'!I77,'QLAV & QLMV'!I77,2.5*LFL1234yf^(5/4)*HF*A_2^(1/2))<'QLAV & QLMV'!J77,'QLAV & QLMV'!J77,IF(2.5*LFL1234yf^(5/4)*HF*A_2^(1/2)>'QLAV & QLMV'!I77,'QLAV & QLMV'!I77,2.5*LFL1234yf^(5/4)*HF*A_2^(1/2))) -> 11.271 | C88: =B88 -> 11.271 | D88: =B88 -> 11.271 | E88: =IF(2.5*LFL1234yf^(5/4)*HF*A_2^(1/2)>'QLAV & QLMV'!I77,'QLAV & QLMV'!I77,2.5*LFL1234yf^(5/4)*HF*A_2^(1/2)) -> 11.271 | F88: =IF(IF(K77>H77,H77,K77)<J77,J77,IF(K77>H77,H77,K77)) -> 15 | G88: =IF(IF(L77>H77,H77,L77)<J77,J77,IF(L77>H77,H77,L77)) -> 35 | H88: =B88 -> 11.271 | I88: =C88 -> 11.271 | J88: =D88 -> 11.271 | K88: =E88 -> 11.271 | L88: =F88 -> 15 | M88: =G88 -> 35 | N88: =B88 -> 11.271 | O88: =C88 -> 11.271 | P88: =D88 -> 11.271 | Q88: =E88 -> 11.271 | R88: =F88 -> 15 | S88: =G88 -> 35 | T88: No Charge Restriction | U88: No Charge Restriction | V88: No Charge Restriction | W88: 56.355 | X88: 56.355 | Y88: 56.355
A89: R1234ze | B89: =IF(IF(2.5*LFL1234ze^(5/4)*HF*A_2^(1/2)>'QLAV & QLMV'!I78,'QLAV & QLMV'!I78,2.5*LFL1234ze^(5/4)*HF*A_2^(1/2))<'QLAV & QLMV'!J78,'QLAV & QLMV'!J78,IF(2.5*LFL1234ze^(5/4)*HF*A_2^(1/2)>'QLAV & QLMV'!I78,'QLAV & QLMV'!I78,2.5*LFL1234ze^(5/4)*HF*A_2^(1/2))) -> 11.817 | C89: 11.817 | D89: =B89 -> 11.817 | E89: =IF(2.5*LFL1234ze^(5/4)*HF*A_2^(1/2)>'QLAV & QLMV'!I78,'QLAV & QLMV'!I78,2.5*LFL1234ze^(5/4)*HF*A_2^(1/2)) -> 11.817 | F89: =IF(IF(K78>H78,H78,K78)<J78,J78,IF(K78>H78,H78,K78)) -> 15.75 | G89: =IF(IF(L78>H78,H78,L78)<J78,J78,IF(L78>H78,H78,L78)) -> 37.5 | H89: =B89 -> 11.817 | I89: =C89 -> 11.817 | J89: =D89 -> 11.817 | K89: =E89 -> 11.817 | L89: =F89 -> 15.75 | M89: =G89 -> 37.5 | N89: =B89 -> 11.817 | O89: =C89 -> 11.817 | P89: =D89 -> 11.817 | Q89: =E89 -> 11.817 | R89: =F89 -> 15.75 | S89: =G89 -> 37.5 | T89: No Charge Restriction | U89: No Charge Restriction | V89: No Charge Restriction | W89: 59.085 | X89: 59.085 | Y89: 59.085
A90: Result | B90: =IF($P$70="HCa11",B81,IF($P$70="HCa12",B82,IF($P$70="HCa13",B83,IF($P$70="HCa14",B84,IF($P$70="HCa15",B85,IF($P$70="HCa16",B86,IF($P$70="HCa17",B87,IF($P$70="HCa18",B88,IF($P$70="HCa19",B89))))))))) -> 11.427 | C90: =B90 -> 11.427 | D90: =B90 -> 11.427 | E90: =IF($P$70="HCa21",E81,IF($P$70="HCa22",E82,IF($P$70="HCa23",E83,IF($P$70="HCa24",E84,IF($P$70="HCa25",E85,IF($P$70="HCa26",E86,IF($P$70="HCa27",E87,IF($P$70="HCa28",E88,IF($P$70="HCa29",E89))))))))) -> FALSE | F90: =IF($P$70="HCa21",F81,IF($P$70="HCa22",F82,IF($P$70="HCa23",F83,IF($P$70="HCa24",F84,IF($P$70="HCa25",F85,IF($P$70="HCa26",F86,IF($P$70="HCa27",F87,IF($P$70="HCa28",F88,IF($P$70="HCa29",F89))))))))) -> FALSE | G90: =IF($P$70="HCa21",G81,IF($P$70="HCa22",G82,IF($P$70="HCa23",G83,IF($P$70="HCa24",G84,IF($P$70="HCa25",G85,IF($P$70="HCa26",G86,IF($P$70="HCa27",G87,IF($P$70="HCa28",G88,IF($P$70="HCa29",G89))))))))) -> FALSE | H90: =IF($P$70="HCb11",H81,IF($P$70="HCb12",H82,IF($P$70="HCb13",H83,IF($P$70="HCb14",H84,IF($P$70="HCb15",H85,IF($P$70="HCb16",H86,IF($P$70="HCb17",H87,IF($P$70="HCb18",H88,IF($P$70="HCb19",H89))))))))) -> FALSE | I90: =H90 -> FALSE | J90: =H90 -> FALSE | K90: =IF($P$70="HCb21",K81,IF($P$70="HCb22",K82,IF($P$70="HCb23",K83,IF($P$70="HCb24",K84,IF($P$70="HCb25",K85,IF($P$70="HCb26",K86,IF($P$70="HCb27",K87,IF($P$70="HCb28",K88,IF($P$70="HCb29",K89))))))))) -> FALSE | L90: =IF($P$70="HCb21",L81,IF($P$70="HCb22",L82,IF($P$70="HCb23",L83,IF($P$70="HCb24",L84,IF($P$70="HCb25",L85,IF($P$70="HCb26",L86,IF($P$70="HCb27",L87,IF($P$70="HCb28",L88,IF($P$70="HCb29",L89))))))))) -> FALSE | M90: =IF($P$70="HCb21",M81,IF($P$70="HCb22",M82,IF($P$70="HCb23",M83,IF($P$70="HCb24",M84,IF($P$70="HCb25",M85,IF($P$70="HCb26",M86,IF($P$70="HCb27",M87,IF($P$70="HCb28",M88,IF($P$70="HCb29",M89))))))))) -> FALSE | N90: =IF($P$70="HCc11",N81,IF($P$70="HCc12",N82,IF($P$70="HCc13",N83,IF($P$70="HCc14",N84,IF($P$70="HCc15",N85,IF($P$70="HCc16",N86,IF($P$70="HCc17",N87,IF($P$70="HCc18",N88,IF($P$70="HCc19",N89))))))))) -> FALSE | O90: =N90 -> FALSE | P90: =N90 -> FALSE | Q90: =IF($P$70="HCc21",Q81,IF($P$70="HCc22",Q82,IF($P$70="HCc23",Q83,IF($P$70="HCc24",Q84,IF($P$70="HCc25",Q85,IF($P$70="HCc26",Q86,IF($P$70="HCc27",Q87,IF($P$70="HCc28",Q88,IF($P$70="HCc29",Q89))))))))) -> FALSE | R90: =IF($P$70="HCc21",R81,IF($P$70="HCc22",R82,IF($P$70="HCc23",R83,IF($P$70="HCc24",R84,IF($P$70="HCc25",R85,IF($P$70="HCc26",R86,IF($P$70="HCc27",R87,IF($P$70="HCc28",R88,IF($P$70="HCc29",R89))))))))) -> FALSE | S90: =IF($P$70="HCc21",S81,IF($P$70="HCc22",S82,IF($P$70="HCc23",S83,IF($P$70="HCc24",S84,IF($P$70="HCc25",S85,IF($P$70="HCc26",S86,IF($P$70="HCc27",S87,IF($P$70="HCc28",S88,IF($P$70="HCc29",S89))))))))) -> FALSE | T90: No Charge Restriction | U90: No Charge Restriction | V90: No Charge Restriction | W90: =IF($P$70="HCa41",W81,IF($P$70="HCa42",W82,IF($P$70="HCa43",W83,IF($P$70="HCa44",W84,IF($P$70="HCa45",W85,IF($P$70="HCa46",W86,IF($P$70="HCa47",W87,IF($P$70="HCa48",W88,IF($P$70="HCa49",W89))))))))) -> FALSE | X90: =IF($P$70="HCb41",X81,IF($P$70="HCb42",X82,IF($P$70="HCb43",X83,IF($P$70="HCb44",X84,IF($P$70="HCb45",X85,IF($P$70="HCb46",X86,IF($P$70="HCb47",X87,IF($P$70="HCb48",X88,IF($P$70="HCb49",X89))))))))) -> FALSE | Y90: =IF($P$70="HCc41",Y81,IF($P$70="HCc42",Y82,IF($P$70="HCc43",Y83,IF($P$70="HCc44",Y84,IF($P$70="HCc45",Y85,IF($P$70="HCc46",Y86,IF($P$70="HCc47",Y87,IF($P$70="HCc48",Y88,IF($P$70="HCc49",Y89))))))))) -> FALSE
C91: =IF($A$65="HCa1",C90,"N/A") -> 11.427 | D91: =IF($A$65="HCa1",D90,"N/A") -> 11.427 | F91: =IF($A$65="HCa2",F90,"N/A") -> N/A | G91: =IF($A$65="HCa2",G90,"N/A") -> N/A | I91: =IF($A$65="HCb1",I90,"N/A") -> N/A | J91: =IF($A$65="HCb1",J90,"N/A") -> N/A | L91: =IF($A$65="HCb2",L90,"N/A") -> N/A | M91: =IF($A$65="HCb2",M90,"N/A") -> N/A | O91: =IF($A$65="HCc1",O90,"N/A") -> N/A | P91: =IF($A$65="HCc1",P90,"N/A") -> N/A | R91: =IF($A$65="HCc2",R90,"N/A") -> N/A | S91: =IF($A$65="HCc2",S90,"N/A") -> N/A | T91: N/A | U91: N/A | V91: N/A | W91: N/A | X91: N/A | Y91: N/A
B99: ='Template Cold Room (ab. ground)'!D23 -> R455A | C99: =IF(B99="R454c",C31,IF(B99="R454A",C32,IF(B99="R454B",C33,IF(B99="R452B",C34,IF(B99="R32",C35,IF(B99="R455A",C36,IF(B99="R1234yf",C38,IF(B99="R1234ze",C39,"")))))))) -> 0.092 | D99: =IF(B99="R454c",D31,IF(B99="R454A",D32,IF(B99="R454B",D33,IF(B99="R452B",D34,IF(B99="R32",D35,IF(B99="R455A",D36,IF(B99="R1234yf",D38,IF(B99="R1234ze",D39,"")))))))) -> 0.21 | E99: ='Template Cold Room (ab. ground)'!D41/'Template Cold Room (ab. ground)'!D37 -> 0.004 | F99: =IF(E99<=C99,C99,D99) -> 0.092 | G99: ='Template Cold Room (ab. ground)'!D37*F99 -> 460 | H99: =130*LFLL*1.5 -> 84.045 | I99: =26*LFLL*1.5 -> 16.809 | J99: =4*LFLL*1.5 -> 2.586 | K99: ='Template Cold Room (ab. ground)'!D37*C99 -> 460 | L99: ='Template Cold Room (ab. ground)'!D37*D99 -> 1050 | M99: =IF(L99>H99,H99,L99) -> 84.045
B100: C1 | C100: QLMV | D100: QLAV
A101: Sealed | B101: =IF(IF(0.2*LFLL*'Template Cold Room (ab. ground)'!D37>I99,I99,0.2*LFLL*'Template Cold Room (ab. ground)'!D37)<J99,J99,IF(0.2*LFLL*'Template Cold Room (ab. ground)'!D37>I99,I99,0.2*LFLL*'Template Cold Room (ab. ground)'!D37)) -> 16.809 | C101: =B101 -> 16.809 | D101: =IF(IF(L99>H99,H99,L99)<J99,L99,IF(L99>H99,H99,L99)) -> 84.045
A102: Non Sealed | B102: =0.2*LFLL*'Template Cold Room (ab. ground)'!D37 -> 431 | C102: =IF(IF(K99>H99,H99,K99)<J99,K99,IF(K99>H99,H99,K99)) -> 84.045 | D102: =IF(IF(L99>H99,H99,L99)<J99,L99,IF(L99>H99,H99,L99)) -> 84.045
